{"text_format":"2","workbook":"xlsx","n_sheets":1,"sheets":["Sheet1"],"not_rendered":{"charts":0,"images":0,"macros":0,"external_links":0,"defined_names":0,"comments":0,"pivot_tables":0},"unopened":[],"bounds":{"document_bytes":16777216,"sheet_cells":100000,"run_cost":"one","rows_first":2000,"rows_last":500,"rows_between":2000,"halvings":0,"cell_chars":16384,"cell_head_chars":4096},"cells_cut":0,"cells_raw":0,"read":"whole","date_system":"1900"}

{"sheet":"Sheet1","index":0,"n_rows":489,"n_cols":27,"rows_kept":489,"cut":false,"hidden":false,"merged":[]}
[null,"Path",null,null,"Animal","Miniscope","Date","Session","ROI",null,"Path",null,null,"Animal","Two-photon","Date","Session","ROI"]
[1,"Annet Glas","Two photon versus miniscope","Raw Data","AG160929","Miniscope Imaging",161206,7,1,null,"Annet Glas","Two photon versus miniscope","Raw Data","AG160929","Two-photon Imaging",161206,4,1]
[{"$f":"A2+1","v":2},"Annet Glas","Two photon versus miniscope","Raw Data",{"$f":"$E$2","v":"AG160929"},"Miniscope Imaging",161206,{"$f":"$H$2","v":7},2,null,"Annet Glas","Two photon versus miniscope","Raw Data",{"$f":"$E$2","v":"AG160929"},"Two-photon Imaging",161206,3,1]
[{"$f":"A3+1","v":3},"Annet Glas","Two photon versus miniscope","Raw Data",{"$f":"$E$2","v":"AG160929"},"Miniscope Imaging",161206,{"$f":"$H$2","v":7},3,null,"Annet Glas","Two photon versus miniscope","Raw Data",{"$f":"$E$2","v":"AG160929"},"Two-photon Imaging",161206,5,1]
[4,"Annet Glas","Two photon versus miniscope","Raw Data","AG160929","Miniscope Imaging",161206,7,4,null,"Annet Glas","Two photon versus miniscope","Raw Data","AG160929","Two-photon Imaging",161206,6,1]
[5,"Annet Glas","Two photon versus miniscope","Raw Data","AG160929","Miniscope Imaging",161206,7,5,null,"Annet Glas","Two photon versus miniscope","Raw Data","AG160929","Two-photon Imaging",161206,6,2]
[6,"Annet Glas","Two photon versus miniscope","Raw Data","AG160929","Miniscope Imaging",161206,7,6,null,"Annet Glas","Two photon versus miniscope","Raw Data","AG160929","Two-photon Imaging",161206,5,2]
[7,"Annet Glas","Two photon versus miniscope","Raw Data","AG160929","Miniscope Imaging",161206,7,7,null,"Annet Glas","Two photon versus miniscope","Raw Data","AG160929","Two-photon Imaging",161206,5,3]
[8,"Annet Glas","Two photon versus miniscope","Raw Data","AG160929","Miniscope Imaging",161206,7,8,null,"Annet Glas","Two photon versus miniscope","Raw Data","AG160929","Two-photon Imaging",161206,4,3]
[9,"Annet Glas","Two photon versus miniscope","Raw Data","AG160929","Miniscope Imaging",161206,7,9,null,"Annet Glas","Two photon versus miniscope","Raw Data","AG160929","Two-photon Imaging",161206,4,4]
[10,"Annet Glas","Two photon versus miniscope","Raw Data","AG160929","Miniscope Imaging",161206,7,{"$f":"I10+1","v":10},null,"Annet Glas","Two photon versus miniscope","Raw Data","AG160929","Two-photon Imaging",161206,5,4]
[11,"Annet Glas","Two photon versus miniscope","Raw Data","AG160929","Miniscope Imaging",161206,7,{"$f":"I11+1","v":11},null,"Annet Glas","Two photon versus miniscope","Raw Data","AG160929","Two-photon Imaging",161206,5,5]
[12,"Annet Glas","Two photon versus miniscope","Raw Data","AG160929","Miniscope Imaging",161206,7,12,null,"Annet Glas","Two photon versus miniscope","Raw Data","AG160929","Two-photon Imaging",161206,5,6]
[13,"Annet Glas","Two photon versus miniscope","Raw Data","AG160929","Miniscope Imaging",161206,7,13,null,"Annet Glas","Two photon versus miniscope","Raw Data","AG160929","Two-photon Imaging",161206,4,2]
[14,"Annet Glas","Two photon versus miniscope","Raw Data","AG160929","Miniscope Imaging",161206,7,14,null,"Annet Glas","Two photon versus miniscope","Raw Data","AG160929","Two-photon Imaging",161206,5,10]
[15,"Annet Glas","Two photon versus miniscope","Raw Data","AG160929","Miniscope Imaging",161206,7,15,null,"Annet Glas","Two photon versus miniscope","Raw Data","AG160929","Two-photon Imaging",161206,4,5]
[16,"Annet Glas","Two photon versus miniscope","Raw Data","AG160929","Miniscope Imaging",161206,7,16,null,"Annet Glas","Two photon versus miniscope","Raw Data","AG160929","Two-photon Imaging",161206,5,3]
[17,"Annet Glas","Two photon versus miniscope","Raw Data","AG160929","Miniscope Imaging",161206,7,17,null,"Annet Glas","Two photon versus miniscope","Raw Data","AG160929","Two-photon Imaging",161206,5,7]
[18,"Annet Glas","Two photon versus miniscope","Raw Data","AG160929","Miniscope Imaging",161206,7,18,null,"Annet Glas","Two photon versus miniscope","Raw Data","AG160929","Two-photon Imaging",161206,5,8]
[19,"Annet Glas","Two photon versus miniscope","Raw Data","AG160929","Miniscope Imaging",161206,7,19,null,"Annet Glas","Two photon versus miniscope","Raw Data","AG160929","Two-photon Imaging",161206,5,9]
[20,"Annet Glas","Two photon versus miniscope","Raw Data","AG160929","Miniscope Imaging",161206,7,20,null,"Annet Glas","Two photon versus miniscope","Raw Data","AG160929","Two-photon Imaging",161206,6,4]
[21,"Annet Glas","Two photon versus miniscope","Raw Data","AG160929","Miniscope Imaging",161206,7,21,null,"Annet Glas","Two photon versus miniscope","Raw Data","AG160929","Two-photon Imaging",161206,3,2]
[22,"Annet Glas","Two photon versus miniscope","Raw Data","AG160929","Miniscope Imaging",161206,7,22,null,"Annet Glas","Two photon versus miniscope","Raw Data","AG160929","Two-photon Imaging",161206,3,3]
[23,"Annet Glas","Two photon versus miniscope","Raw Data","AG160929","Miniscope Imaging",161206,7,23,null,"Annet Glas","Two photon versus miniscope","Raw Data","AG160929","Two-photon Imaging",161206,3,4]
[24,"Annet Glas","Two photon versus miniscope","Raw Data","AG160929","Miniscope Imaging",161206,7,24,null,"Annet Glas","Two photon versus miniscope","Raw Data","AG160929","Two-photon Imaging",161206,6,5]
[25,"Annet Glas","Two photon versus miniscope","Raw Data","AG160929","Miniscope Imaging",161206,7,25,null,"Annet Glas","Two photon versus miniscope","Raw Data","AG160929","Two-photon Imaging",161206,6,6]
[26,"Annet Glas","Two photon versus miniscope","Raw Data","AG160929","Miniscope Imaging",161206,7,26,null,"Annet Glas","Two photon versus miniscope","Raw Data","AG160929","Two-photon Imaging",161206,6,7]
[27,"Annet Glas","Two photon versus miniscope","Raw Data","AG161220a","Miniscope Imaging",170117,7,1,null,"Annet Glas","Two photon versus miniscope","Raw Data","AG161220a","Two-photon Imaging","NaN",6,2]
[28,"Annet Glas","Two photon versus miniscope","Raw Data","AG161220a","Miniscope Imaging",{"$f":"G$28","v":170117},7,{"$f":"I28+1","v":2},null,"Annet Glas","Two photon versus miniscope","Raw Data","AG161220a","Two-photon Imaging","NaN",7,1]
[29,"Annet Glas","Two photon versus miniscope","Raw Data","AG161220a","Miniscope Imaging",{"$f":"G$28","v":170117},7,{"$f":"I29+1","v":3},null,"Annet Glas","Two photon versus miniscope","Raw Data","AG161220a","Two-photon Imaging","NaN",8,5]
[30,"Annet Glas","Two photon versus miniscope","Raw Data","AG161220a","Miniscope Imaging",170117,7,4,null,"Annet Glas","Two photon versus miniscope","Raw Data","AG161220a","Two-photon Imaging","NaN",8,2]
[31,"Annet Glas","Two photon versus miniscope","Raw Data","AG161220a","Miniscope Imaging",170117,7,5,null,"Annet Glas","Two photon versus miniscope","Raw Data","AG161220a","Two-photon Imaging","NaN",6,1]
[32,"Annet Glas","Two photon versus miniscope","Raw Data","AG161220a","Miniscope Imaging",170117,7,6,null,"Annet Glas","Two photon versus miniscope","Raw Data","AG161220a","Two-photon Imaging","NaN",8,3]
[33,"Annet Glas","Two photon versus miniscope","Raw Data","AG161220a","Miniscope Imaging",170117,7,7,null,"Annet Glas","Two photon versus miniscope","Raw Data","AG161220a","Two-photon Imaging","NaN",8,4]
[34,"Annet Glas","Two photon versus miniscope","Raw Data","AG161220a","Miniscope Imaging",170117,7,8,null,"Annet Glas","Two photon versus miniscope","Raw Data","AG161220a","Two-photon Imaging","NaN",5,1]
[35,"Annet Glas","Two photon versus miniscope","Raw Data","AG161220a","Miniscope Imaging",170117,7,9,null,"Annet Glas","Two photon versus miniscope","Raw Data","AG161220a","Two-photon Imaging","NaN",7,2]
[36,"Annet Glas","Two photon versus miniscope","Raw Data","AG161220a","Miniscope Imaging",170117,7,10,null,"Annet Glas","Two photon versus miniscope","Raw Data","AG161220a","Two-photon Imaging","NaN",4,1]
[37,"Annet Glas","Two photon versus miniscope","Raw Data","AG161220a","Miniscope Imaging",170117,7,11,null,"Annet Glas","Two photon versus miniscope","Raw Data","AG161220a","Two-photon Imaging","NaN",4,2]
[38,"Annet Glas","Two photon versus miniscope","Raw Data","AG161220a","Miniscope Imaging",170117,7,12,null,"Annet Glas","Two photon versus miniscope","Raw Data","AG161220a","Two-photon Imaging","NaN",5,2]
[39,"Annet Glas","Two photon versus miniscope","Raw Data","AG161220a","Miniscope Imaging",170117,10,1,null,"Annet Glas","Two photon versus miniscope","Raw Data","AG161220a","Two-photon Imaging","NaN",10,1]
[40,"Annet Glas","Two photon versus miniscope","Raw Data","AG161220a","Miniscope Imaging",170117,10,2,null,"Annet Glas","Two photon versus miniscope","Raw Data","AG161220a","Two-photon Imaging","NaN",9,1]
[41,"Annet Glas","Two photon versus miniscope","Raw Data","AG161220a","Miniscope Imaging",170117,10,3,null,"Annet Glas","Two photon versus miniscope","Raw Data","AG161220a","Two-photon Imaging","NaN",10,2]
[42,"Annet Glas","Two photon versus miniscope","Raw Data","AG161220a","Miniscope Imaging",170117,10,4,null,"Annet Glas","Two photon versus miniscope","Raw Data","AG161220a","Two-photon Imaging","NaN",8,1]
[43,"Annet Glas","Two photon versus miniscope","Raw Data","AG161220a","Miniscope Imaging",170117,10,5,null,"Annet Glas","Two photon versus miniscope","Raw Data","AG161220a","Two-photon Imaging","NaN",9,2]
[44,"Annet Glas","Two photon versus miniscope","Raw Data","AG161220a","Miniscope Imaging",170117,10,6,null,"Annet Glas","Two photon versus miniscope","Raw Data","AG161220a","Two-photon Imaging","NaN",9,3]
[45,"Annet Glas","Two photon versus miniscope","Raw Data","AG161220b","Miniscope Imaging",170213,4,1,null,"Annet Glas","Two photon versus miniscope","Raw Data",{"$f":"N$46","v":"AG161220b"},"Two-photon Imaging",170213,7,1]
[46,"Annet Glas","Two photon versus miniscope","Raw Data",{"$f":"E$46","v":"AG161220b"},"Miniscope Imaging",170213,4,{"$f":"I46+1","v":2},null,"Annet Glas","Two photon versus miniscope","Raw Data",{"$f":"N$46","v":"AG161220b"},"Two-photon Imaging",170213,6,1]
[47,"Annet Glas","Two photon versus miniscope","Raw Data",{"$f":"E$46","v":"AG161220b"},"Miniscope Imaging",170213,4,{"$f":"I47+1","v":3},null,"Annet Glas","Two photon versus miniscope","Raw Data","AG161220b","Two-photon Imaging",170213,7,2]
[48,"Annet Glas","Two photon versus miniscope","Raw Data","AG161220b","Miniscope Imaging",170213,4,4,null,"Annet Glas","Two photon versus miniscope","Raw Data","AG161220b","Two-photon Imaging",170213,5,1]
[49,"Annet Glas","Two photon versus miniscope","Raw Data","AG161220b","Miniscope Imaging",170213,4,5,null,"Annet Glas","Two photon versus miniscope","Raw Data","AG161220b","Two-photon Imaging",170213,6,2]
[50,"Annet Glas","Two photon versus miniscope","Raw Data","AG161220b","Miniscope Imaging",170213,4,6,null,"Annet Glas","Two photon versus miniscope","Raw Data","AG161220b","Two-photon Imaging",170213,6,3]
[51,"Annet Glas","Two photon versus miniscope","Raw Data","AG161220b","Miniscope Imaging",170213,4,7,null,"Annet Glas","Two photon versus miniscope","Raw Data","AG161220b","Two-photon Imaging",170213,6,4]
[52,"Annet Glas","Two photon versus miniscope","Raw Data","AG161220b","Miniscope Imaging",170213,4,8,null,"Annet Glas","Two photon versus miniscope","Raw Data","AG161220b","Two-photon Imaging",170213,5,2]
[53,"Annet Glas","Two photon versus miniscope","Raw Data","AG161220b","Miniscope Imaging",170213,4,9,null,"Annet Glas","Two photon versus miniscope","Raw Data","AG161220b","Two-photon Imaging",170213,5,3]
[54,"Annet Glas","Two photon versus miniscope","Raw Data","AG161220b","Miniscope Imaging",170213,4,10,null,"Annet Glas","Two photon versus miniscope","Raw Data","AG161220b","Two-photon Imaging",170213,3,2]
[55,"Annet Glas","Two photon versus miniscope","Raw Data","AG161220b","Miniscope Imaging",170213,4,11,null,"Annet Glas","Two photon versus miniscope","Raw Data","AG161220b","Two-photon Imaging",170213,3,1]
[56,"Annet Glas","Two photon versus miniscope","Raw Data","AG161220b","Miniscope Imaging",170213,4,12,null,"Annet Glas","Two photon versus miniscope","Raw Data","AG161220b","Two-photon Imaging",170213,4,2]
[57,"Annet Glas","Two photon versus miniscope","Raw Data","AG161220b","Miniscope Imaging",170213,4,13,null,"Annet Glas","Two photon versus miniscope","Raw Data","AG161220b","Two-photon Imaging",170213,6,5]
[58,"Annet Glas","Two photon versus miniscope","Raw Data","AG161220b","Miniscope Imaging",170213,4,14,null,"Annet Glas","Two photon versus miniscope","Raw Data","AG161220b","Two-photon Imaging",170213,7,3]
[59,"Annet Glas","Two photon versus miniscope","Raw Data","AG161220b","Miniscope Imaging",170213,4,15,null,"Annet Glas","Two photon versus miniscope","Raw Data","AG161220b","Two-photon Imaging",170213,4,3]
[60,"Annet Glas","Two photon versus miniscope","Raw Data","AG161220b","Miniscope Imaging",170213,4,16,null,"Annet Glas","Two photon versus miniscope","Raw Data","AG161220b","Two-photon Imaging",170213,6,6]
[61,"Annet Glas","Two photon versus miniscope","Raw Data","AG161220b","Miniscope Imaging",170213,4,17,null,"Annet Glas","Two photon versus miniscope","Raw Data","AG161220b","Two-photon Imaging",170213,3,4]
[62,"Annet Glas","Two photon versus miniscope","Raw Data","AG161220b","Miniscope Imaging",170213,4,18,null,"Annet Glas","Two photon versus miniscope","Raw Data","AG161220b","Two-photon Imaging",170213,5,4]
[63,"Annet Glas","Two photon versus miniscope","Raw Data","AG161220b","Miniscope Imaging",170213,4,19,null,"Annet Glas","Two photon versus miniscope","Raw Data","AG161220b","Two-photon Imaging",170213,6,7]
[64,"Annet Glas","Two photon versus miniscope","Raw Data","AG161220b","Miniscope Imaging",170213,4,20,null,"Annet Glas","Two photon versus miniscope","Raw Data","AG161220b","Two-photon Imaging",170213,2,1]
[65,"Annet Glas","Two photon versus miniscope","Raw Data","AG161220b","Miniscope Imaging",170213,4,21,null,"Annet Glas","Two photon versus miniscope","Raw Data","AG161220b","Two-photon Imaging",170213,3,3]
[66,"Annet Glas","Two photon versus miniscope","Raw Data","AG161220b","Miniscope Imaging",170213,4,22,null,"Annet Glas","Two photon versus miniscope","Raw Data","AG161220b","Two-photon Imaging",170213,5,5]
[{"$f":"A67+1","v":67},"Annet Glas","Two photon versus miniscope","Raw Data","AG161220b","Miniscope Imaging",170213,4,23,null,"Annet Glas","Two photon versus miniscope","Raw Data","AG161220b","Two-photon Imaging",170213,2,2]
[68,"Annet Glas","Two photon versus miniscope","Raw Data","AG161220b","Miniscope Imaging",170213,4,24,null,"Annet Glas","Two photon versus miniscope","Raw Data","AG161220b","Two-photon Imaging",170213,4,4]
[69,"Annet Glas","Two photon versus miniscope","Raw Data","AG161220b","Miniscope Imaging",170213,4,25,null,"Annet Glas","Two photon versus miniscope","Raw Data","AG161220b","Two-photon Imaging",170213,5,6]
[70,"Annet Glas","Two photon versus miniscope","Raw Data","AG161220b","Miniscope Imaging",170213,4,26,null,"Annet Glas","Two photon versus miniscope","Raw Data","AG161220b","Two-photon Imaging",170213,5,7]
[71,"Annet Glas","Two photon versus miniscope","Raw Data","AG161220b","Miniscope Imaging",170213,4,27,null,"Annet Glas","Two photon versus miniscope","Raw Data","AG161220b","Two-photon Imaging",170213,5,8]
[72,"Annet Glas","Two photon versus miniscope","Raw Data","AG161220b","Miniscope Imaging",170213,4,28,null,"Annet Glas","Two photon versus miniscope","Raw Data","AG161220b","Two-photon Imaging",170213,3,5]
[73,"Annet Glas","Two photon versus miniscope","Raw Data","AG161220b","Miniscope Imaging",170213,4,{"$f":"I73+1","v":29},null,"Annet Glas","Two photon versus miniscope","Raw Data","AG161220b","Two-photon Imaging",170213,2,3]
[74,"Annet Glas","Two photon versus miniscope","Raw Data","AG161220b","Miniscope Imaging",170213,4,30,null,"Annet Glas","Two photon versus miniscope","Raw Data","AG161220b","Two-photon Imaging",170213,4,1]
[75,"Annet Glas","Two photon versus miniscope","Raw Data","AG161220b","Miniscope Imaging",170213,4,31,null,"Annet Glas","Two photon versus miniscope","Raw Data","AG161220b","Two-photon Imaging",170213,5,9]
[76,"Annet Glas","Two photon versus miniscope","Raw Data","AG161220b","Miniscope Imaging",170213,4,32,null,"Annet Glas","Two photon versus miniscope","Raw Data","AG161220b","Two-photon Imaging",170213,3,6]
[77,"Annet Glas","Two photon versus miniscope","Raw Data","AG161220b","Miniscope Imaging",170213,3,1,null,"Annet Glas","Two photon versus miniscope","Raw Data","AG161220b","Two-photon Imaging",170227,3,2]
[78,"Annet Glas","Two photon versus miniscope","Raw Data","AG161220b","Miniscope Imaging",170213,3,2,null,"Annet Glas","Two photon versus miniscope","Raw Data","AG161220b","Two-photon Imaging",170227,5,1]
[79,"Annet Glas","Two photon versus miniscope","Raw Data","AG161220b","Miniscope Imaging",170213,3,3,null,"Annet Glas","Two photon versus miniscope","Raw Data","AG161220b","Two-photon Imaging",170227,3,3]
[80,"Annet Glas","Two photon versus miniscope","Raw Data","AG161220b","Miniscope Imaging",170213,3,4,null,"Annet Glas","Two photon versus miniscope","Raw Data","AG161220b","Two-photon Imaging",170227,3,4]
[81,"Annet Glas","Two photon versus miniscope","Raw Data","AG161220b","Miniscope Imaging",170213,3,5,null,"Annet Glas","Two photon versus miniscope","Raw Data","AG161220b","Two-photon Imaging",170227,6,1]
[82,"Annet Glas","Two photon versus miniscope","Raw Data","AG161220b","Miniscope Imaging",170213,3,6,null,"Annet Glas","Two photon versus miniscope","Raw Data","AG161220b","Two-photon Imaging",170227,4,3]
[83,"Annet Glas","Two photon versus miniscope","Raw Data","AG161220b","Miniscope Imaging",170213,3,7,null,"Annet Glas","Two photon versus miniscope","Raw Data","AG161220b","Two-photon Imaging",170227,2,2]
[84,"Annet Glas","Two photon versus miniscope","Raw Data","AG161220b","Miniscope Imaging",170213,3,8,null,"Annet Glas","Two photon versus miniscope","Raw Data","AG161220b","Two-photon Imaging",170227,4,1]
[85,"Annet Glas","Two photon versus miniscope","Raw Data","AG161220b","Miniscope Imaging",170213,3,9,null,"Annet Glas","Two photon versus miniscope","Raw Data","AG161220b","Two-photon Imaging",170227,5,2]
[86,"Annet Glas","Two photon versus miniscope","Raw Data","AG161220b","Miniscope Imaging",170213,3,10,null,"Annet Glas","Two photon versus miniscope","Raw Data","AG161220b","Two-photon Imaging",170227,6,2]
[87,"Annet Glas","Two photon versus miniscope","Raw Data","AG161220b","Miniscope Imaging",170213,3,11,null,"Annet Glas","Two photon versus miniscope","Raw Data","AG161220b","Two-photon Imaging",170227,6,3]
[88,"Annet Glas","Two photon versus miniscope","Raw Data","AG161220b","Miniscope Imaging",170213,3,12,null,"Annet Glas","Two photon versus miniscope","Raw Data","AG161220b","Two-photon Imaging",170227,4,6]
[89,"Annet Glas","Two photon versus miniscope","Raw Data","AG161220b","Miniscope Imaging",170213,3,13,null,"Annet Glas","Two photon versus miniscope","Raw Data","AG161220b","Two-photon Imaging",170227,4,2]
[90,"Annet Glas","Two photon versus miniscope","Raw Data","AG161220b","Miniscope Imaging",170213,3,14,null,"Annet Glas","Two photon versus miniscope","Raw Data","AG161220b","Two-photon Imaging",170227,6,4]
[91,"Annet Glas","Two photon versus miniscope","Raw Data","AG161220b","Miniscope Imaging",170213,3,15,null,"Annet Glas","Two photon versus miniscope","Raw Data","AG161220b","Two-photon Imaging",170227,6,5]
[92,"Annet Glas","Two photon versus miniscope","Raw Data","AG161220b","Miniscope Imaging",170213,3,16,null,"Annet Glas","Two photon versus miniscope","Raw Data","AG161220b","Two-photon Imaging",170227,5,3]
[93,"Annet Glas","Two photon versus miniscope","Raw Data","AG161220b","Miniscope Imaging",170213,3,17,null,"Annet Glas","Two photon versus miniscope","Raw Data","AG161220b","Two-photon Imaging",170227,6,6]
[94,"Annet Glas","Two photon versus miniscope","Raw Data","AG161220b","Miniscope Imaging",170213,3,18,null,"Annet Glas","Two photon versus miniscope","Raw Data","AG161220b","Two-photon Imaging",170227,5,5]
[95,"Annet Glas","Two photon versus miniscope","Raw Data","AG161220b","Miniscope Imaging",170213,3,19,null,"Annet Glas","Two photon versus miniscope","Raw Data","AG161220b","Two-photon Imaging",170227,4,5]
[96,"Annet Glas","Two photon versus miniscope","Raw Data","AG161220b","Miniscope Imaging",170213,3,20,null,"Annet Glas","Two photon versus miniscope","Raw Data","AG161220b","Two-photon Imaging",170227,3,1]
[97,"Annet Glas","Two photon versus miniscope","Raw Data","AG161220b","Miniscope Imaging",170213,3,21,null,"Annet Glas","Two photon versus miniscope","Raw Data","AG161220b","Two-photon Imaging",170227,5,4]
[98,"Annet Glas","Two photon versus miniscope","Raw Data","AG161220b","Miniscope Imaging",170213,3,22,null,"Annet Glas","Two photon versus miniscope","Raw Data","AG161220b","Two-photon Imaging",170227,6,7]
[99,"Annet Glas","Two photon versus miniscope","Raw Data","AG161220b","Miniscope Imaging",170213,3,23,null,"Annet Glas","Two photon versus miniscope","Raw Data","AG161220b","Two-photon Imaging",170227,4,7]
[100,"Annet Glas","Two photon versus miniscope","Raw Data","AG161220b","Miniscope Imaging",170213,3,24,null,"Annet Glas","Two photon versus miniscope","Raw Data","AG161220b","Two-photon Imaging",170227,1,1]
[101,"Annet Glas","Two photon versus miniscope","Raw Data","AG161220b","Miniscope Imaging",170213,3,25,null,"Annet Glas","Two photon versus miniscope","Raw Data","AG161220b","Two-photon Imaging",170227,6,8]
[102,"Annet Glas","Two photon versus miniscope","Raw Data","AG161220b","Miniscope Imaging",170213,3,26,null,"Annet Glas","Two photon versus miniscope","Raw Data","AG161220b","Two-photon Imaging",170227,2,1]
[103,"Annet Glas","Two photon versus miniscope","Raw Data","AG161220b","Miniscope Imaging",170213,3,27,null,"Annet Glas","Two photon versus miniscope","Raw Data","AG161220b","Two-photon Imaging",170227,4,4]
[104,"Annet Glas","Two photon versus miniscope","Raw Data","AG161220b","Miniscope Imaging",170213,3,28,null,"Annet Glas","Two photon versus miniscope","Raw Data","AG161220b","Two-photon Imaging",170227,6,9]
[105,"Annet Glas","Two photon versus miniscope","Raw Data","AG161220b","Miniscope Imaging",170213,3,29,null,"Annet Glas","Two photon versus miniscope","Raw Data","AG161220b","Two-photon Imaging",170227,6,10]
[106,"Annet Glas","Two photon versus miniscope","Raw Data","AG161220b","Miniscope Imaging",170213,3,30,null,"Annet Glas","Two photon versus miniscope","Raw Data","AG161220b","Two-photon Imaging",170227,4,8]
[107,"Annet Glas","Two photon versus miniscope","Raw Data","AG161221","Miniscope Imaging",170329,1,1,null,"Annet Glas","Two photon versus miniscope","Raw Data",{"$f":"E108","v":"AG161221"},"Two-photon Imaging",170405,6,1]
[108,"Annet Glas","Two photon versus miniscope","Raw Data",{"$f":"E$108","v":"AG161221"},"Miniscope Imaging",170329,1,{"$f":"I108+1","v":2},null,"Annet Glas","Two photon versus miniscope","Raw Data",{"$f":"E109","v":"AG161221"},"Two-photon Imaging",170405,6,2]
[109,"Annet Glas","Two photon versus miniscope","Raw Data",{"$f":"E$108","v":"AG161221"},"Miniscope Imaging",170329,1,{"$f":"I109+1","v":3},null,"Annet Glas","Two photon versus miniscope","Raw Data","AG161221","Two-photon Imaging",170405,4,1]
[110,"Annet Glas","Two photon versus miniscope","Raw Data","AG161221","Miniscope Imaging",170329,1,4,null,"Annet Glas","Two photon versus miniscope","Raw Data","AG161221","Two-photon Imaging",170405,6,3]
[111,"Annet Glas","Two photon versus miniscope","Raw Data","AG161221","Miniscope Imaging",170329,1,5,null,"Annet Glas","Two photon versus miniscope","Raw Data","AG161221","Two-photon Imaging",170405,6,4]
[112,"Annet Glas","Two photon versus miniscope","Raw Data","AG161221","Miniscope Imaging",170329,1,6,null,"Annet Glas","Two photon versus miniscope","Raw Data","AG161221","Two-photon Imaging",170405,4,2]
[113,"Annet Glas","Two photon versus miniscope","Raw Data","AG161221","Miniscope Imaging",170329,1,7,null,"Annet Glas","Two photon versus miniscope","Raw Data","AG161221","Two-photon Imaging",170405,6,5]
[114,"Annet Glas","Two photon versus miniscope","Raw Data","AG161221","Miniscope Imaging",170329,1,8,null,"Annet Glas","Two photon versus miniscope","Raw Data","AG161221","Two-photon Imaging",170405,6,6]
[115,"Annet Glas","Two photon versus miniscope","Raw Data","AG161221","Miniscope Imaging",170329,1,9,null,"Annet Glas","Two photon versus miniscope","Raw Data","AG161221","Two-photon Imaging",170405,6,7]
[116,"Annet Glas","Two photon versus miniscope","Raw Data","AG161221","Miniscope Imaging",170329,1,10,null,"Annet Glas","Two photon versus miniscope","Raw Data","AG161221","Two-photon Imaging",170405,6,8]
[117,"Annet Glas","Two photon versus miniscope","Raw Data","AG161221","Miniscope Imaging",170329,1,11,null,"Annet Glas","Two photon versus miniscope","Raw Data","AG161221","Two-photon Imaging",170405,6,9]
[118,"Annet Glas","Two photon versus miniscope","Raw Data","AG161221","Miniscope Imaging",170329,1,12,null,"Annet Glas","Two photon versus miniscope","Raw Data","AG161221","Two-photon Imaging",170405,6,10]
[119,"Annet Glas","Two photon versus miniscope","Raw Data","AG161221","Miniscope Imaging",170329,1,13,null,"Annet Glas","Two photon versus miniscope","Raw Data","AG161221","Two-photon Imaging",170405,6,11]
[120,"Annet Glas","Two photon versus miniscope","Raw Data","AG161221","Miniscope Imaging",170329,1,14,null,"Annet Glas","Two photon versus miniscope","Raw Data","AG161221","Two-photon Imaging",170405,5,1]
[121,"Annet Glas","Two photon versus miniscope","Raw Data","AG161221","Miniscope Imaging",170329,1,15,null,"Annet Glas","Two photon versus miniscope","Raw Data","AG161221","Two-photon Imaging",170405,6,12]
[122,"Annet Glas","Two photon versus miniscope","Raw Data","AG161221","Miniscope Imaging",170329,1,16,null,"Annet Glas","Two photon versus miniscope","Raw Data","AG161221","Two-photon Imaging",170405,3,2]
[123,"Annet Glas","Two photon versus miniscope","Raw Data","AG161221","Miniscope Imaging",170329,1,17,null,"Annet Glas","Two photon versus miniscope","Raw Data","AG161221","Two-photon Imaging",170405,6,13]
[124,"Annet Glas","Two photon versus miniscope","Raw Data","AG161221","Miniscope Imaging",170329,1,18,null,"Annet Glas","Two photon versus miniscope","Raw Data","AG161221","Two-photon Imaging",170405,6,14]
[125,"Annet Glas","Two photon versus miniscope","Raw Data","AG161221","Miniscope Imaging",170329,1,19,null,"Annet Glas","Two photon versus miniscope","Raw Data","AG161221","Two-photon Imaging",170405,6,15]
[126,"Annet Glas","Two photon versus miniscope","Raw Data","AG161221","Miniscope Imaging",170329,1,20,null,"Annet Glas","Two photon versus miniscope","Raw Data","AG161221","Two-photon Imaging",170405,6,16]
[127,"Annet Glas","Two photon versus miniscope","Raw Data","AG161221","Miniscope Imaging",170329,1,21,null,"Annet Glas","Two photon versus miniscope","Raw Data","AG161221","Two-photon Imaging",170405,1,1]
[128,"Annet Glas","Two photon versus miniscope","Raw Data","AG161221","Miniscope Imaging",170329,1,22,null,"Annet Glas","Two photon versus miniscope","Raw Data","AG161221","Two-photon Imaging",170405,6,17]
[129,"Annet Glas","Two photon versus miniscope","Raw Data","AG161221","Miniscope Imaging",170329,1,23,null,"Annet Glas","Two photon versus miniscope","Raw Data","AG161221","Two-photon Imaging",170405,6,18]
[130,"Annet Glas","Two photon versus miniscope","Raw Data","AG161221","Miniscope Imaging",170329,1,24,null,"Annet Glas","Two photon versus miniscope","Raw Data","AG161221","Two-photon Imaging",170405,6,19]
[{"$f":"A131+1","v":131},"Annet Glas","Two photon versus miniscope","Raw Data","AG161221","Miniscope Imaging",170329,1,25,null,"Annet Glas","Two photon versus miniscope","Raw Data","AG161221","Two-photon Imaging",170405,2,1]
[132,"Annet Glas","Two photon versus miniscope","Raw Data","AG161221","Miniscope Imaging",170329,1,26,null,"Annet Glas","Two photon versus miniscope","Raw Data","AG161221","Two-photon Imaging",170405,3,1]
[133,"Annet Glas","Two photon versus miniscope","Raw Data","AG161221","Miniscope Imaging",170329,1,27,null,"Annet Glas","Two photon versus miniscope","Raw Data","AG161221","Two-photon Imaging",170405,5,2]
[134,"Annet Glas","Two photon versus miniscope","Raw Data","AG161221","Miniscope Imaging",170329,1,28,null,"Annet Glas","Two photon versus miniscope","Raw Data","AG161221","Two-photon Imaging",170405,6,20]
[135,"Annet Glas","Two photon versus miniscope","Raw Data","AG161221","Miniscope Imaging",170329,1,29,null,"Annet Glas","Two photon versus miniscope","Raw Data","AG161221","Two-photon Imaging",170405,6,21]
[136,"Annet Glas","Two photon versus miniscope","Raw Data","AG161221","Miniscope Imaging",170329,1,30,null,"Annet Glas","Two photon versus miniscope","Raw Data","AG161221","Two-photon Imaging",170405,4,3]
[137,"Annet Glas","Two photon versus miniscope","Raw Data","AG161221","Miniscope Imaging",170329,1,31,null,"Annet Glas","Two photon versus miniscope","Raw Data","AG161221","Two-photon Imaging",170405,6,22]
[138,"Annet Glas","Two photon versus miniscope","Raw Data","AG161221","Miniscope Imaging",170329,1,32,null,"Annet Glas","Two photon versus miniscope","Raw Data","AG161221","Two-photon Imaging",170405,6,23]
[139,"Annet Glas","Two photon versus miniscope","Raw Data","AG161221","Miniscope Imaging",170329,1,33,null,"Annet Glas","Two photon versus miniscope","Raw Data","AG161221","Two-photon Imaging",170405,6,24]
[140,"Annet Glas","Two photon versus miniscope","Raw Data","AG161221","Miniscope Imaging",170329,1,34,null,"Annet Glas","Two photon versus miniscope","Raw Data","AG161221","Two-photon Imaging",170405,6,25]
[141,"Annet Glas","Two photon versus miniscope","Raw Data","AG161221","Miniscope Imaging",170329,1,35,null,"Annet Glas","Two photon versus miniscope","Raw Data","AG161221","Two-photon Imaging",170405,5,4]
[142,"Annet Glas","Two photon versus miniscope","Raw Data","AG161221","Miniscope Imaging",170329,1,36,null,"Annet Glas","Two photon versus miniscope","Raw Data","AG161221","Two-photon Imaging",170405,6,26]
[143,"Annet Glas","Two photon versus miniscope","Raw Data","AG161221","Miniscope Imaging",170329,1,37,null,"Annet Glas","Two photon versus miniscope","Raw Data","AG161221","Two-photon Imaging",170405,6,27]
[144,"Annet Glas","Two photon versus miniscope","Raw Data","AG161221","Miniscope Imaging",170329,1,38,null,"Annet Glas","Two photon versus miniscope","Raw Data","AG161221","Two-photon Imaging",170405,6,28]
[145,"Annet Glas","Two photon versus miniscope","Raw Data","AG161221","Miniscope Imaging",170329,1,39,null,"Annet Glas","Two photon versus miniscope","Raw Data","AG161221","Two-photon Imaging",170405,6,29]
[146,"Annet Glas","Two photon versus miniscope","Raw Data","AG161221","Miniscope Imaging",170329,1,40,null,"Annet Glas","Two photon versus miniscope","Raw Data","AG161221","Two-photon Imaging",170405,3,3]
[147,"Annet Glas","Two photon versus miniscope","Raw Data","AG161221","Miniscope Imaging",170329,1,41,null,"Annet Glas","Two photon versus miniscope","Raw Data","AG161221","Two-photon Imaging",170405,1,2]
[148,"Annet Glas","Two photon versus miniscope","Raw Data","AG161221","Miniscope Imaging",170329,1,42,null,"Annet Glas","Two photon versus miniscope","Raw Data","AG161221","Two-photon Imaging",170405,5,3]
[149,"Annet Glas","Two photon versus miniscope","Raw Data","AG161221","Miniscope Imaging",170329,1,43,null,"Annet Glas","Two photon versus miniscope","Raw Data","AG161221","Two-photon Imaging",170405,5,5]
[150,"Annet Glas","Two photon versus miniscope","Raw Data","AG161221","Miniscope Imaging",170329,1,44,null,"Annet Glas","Two photon versus miniscope","Raw Data","AG161221","Two-photon Imaging",170405,5,6]
[151,"Annet Glas","Two photon versus miniscope","Raw Data","AG161221","Miniscope Imaging",170329,5,1,null,"Annet Glas","Two photon versus miniscope","Raw Data","AG161221","Two-photon Imaging",170405,14,1]
[152,"Annet Glas","Two photon versus miniscope","Raw Data","AG161221","Miniscope Imaging",170329,5,{"$f":"I152+1","v":2},null,"Annet Glas","Two photon versus miniscope","Raw Data","AG161221","Two-photon Imaging",170405,15,1]
[153,"Annet Glas","Two photon versus miniscope","Raw Data","AG161221","Miniscope Imaging",170329,5,{"$f":"I153+1","v":3},null,"Annet Glas","Two photon versus miniscope","Raw Data","AG161221","Two-photon Imaging",170405,14,2]
[154,"Annet Glas","Two photon versus miniscope","Raw Data","AG161221","Miniscope Imaging",170329,5,4,null,"Annet Glas","Two photon versus miniscope","Raw Data","AG161221","Two-photon Imaging",170405,13,1]
[155,"Annet Glas","Two photon versus miniscope","Raw Data","AG161221","Miniscope Imaging",170329,5,5,null,"Annet Glas","Two photon versus miniscope","Raw Data","AG161221","Two-photon Imaging",170405,14,3]
[156,"Annet Glas","Two photon versus miniscope","Raw Data","AG161221","Miniscope Imaging",170329,5,6,null,"Annet Glas","Two photon versus miniscope","Raw Data","AG161221","Two-photon Imaging",170405,13,2]
[157,"Annet Glas","Two photon versus miniscope","Raw Data","AG161221","Miniscope Imaging",170329,5,7,null,"Annet Glas","Two photon versus miniscope","Raw Data","AG161221","Two-photon Imaging",170405,12,1]
[158,"Annet Glas","Two photon versus miniscope","Raw Data","AG161221","Miniscope Imaging",170329,5,8,null,"Annet Glas","Two photon versus miniscope","Raw Data","AG161221","Two-photon Imaging",170405,15,2]
[159,"Annet Glas","Two photon versus miniscope","Raw Data","AG161221","Miniscope Imaging",170329,5,9,null,"Annet Glas","Two photon versus miniscope","Raw Data","AG161221","Two-photon Imaging",170405,15,3]
[160,"Annet Glas","Two photon versus miniscope","Raw Data","AG161221","Miniscope Imaging",170329,5,10,null,"Annet Glas","Two photon versus miniscope","Raw Data","AG161221","Two-photon Imaging",170405,14,4]
[161,"Annet Glas","Two photon versus miniscope","Raw Data","AG161221","Miniscope Imaging",170329,5,11,null,"Annet Glas","Two photon versus miniscope","Raw Data","AG161221","Two-photon Imaging",170405,15,3]
[162,"Annet Glas","Two photon versus miniscope","Raw Data","AG161221","Miniscope Imaging",170329,5,12,null,"Annet Glas","Two photon versus miniscope","Raw Data","AG161221","Two-photon Imaging",170405,15,4]
[163,"Annet Glas","Two photon versus miniscope","Raw Data","AG161221","Miniscope Imaging",170329,5,13,null,"Annet Glas","Two photon versus miniscope","Raw Data","AG161221","Two-photon Imaging",170405,15,5]
[164,"Annet Glas","Two photon versus miniscope","Raw Data","AG161221","Miniscope Imaging",170329,5,14,null,"Annet Glas","Two photon versus miniscope","Raw Data","AG161221","Two-photon Imaging",170405,15,6]
[165,"Annet Glas","Two photon versus miniscope","Raw Data","AG161221","Miniscope Imaging",170329,5,15,null,"Annet Glas","Two photon versus miniscope","Raw Data","AG161221","Two-photon Imaging",170405,15,7]
[166,"Annet Glas","Two photon versus miniscope","Raw Data","AG161221","Miniscope Imaging",170329,5,16,null,"Annet Glas","Two photon versus miniscope","Raw Data","AG161221","Two-photon Imaging",170405,15,8]
[167,"Annet Glas","Two photon versus miniscope","Raw Data","AG161221","Miniscope Imaging",170329,5,17,null,"Annet Glas","Two photon versus miniscope","Raw Data","AG161221","Two-photon Imaging",170405,15,9]
[168,"Annet Glas","Two photon versus miniscope","Raw Data","AG161221","Miniscope Imaging",170329,5,18,null,"Annet Glas","Two photon versus miniscope","Raw Data","AG161221","Two-photon Imaging",170405,15,10]
[169,"Annet Glas","Two photon versus miniscope","Raw Data","AG161221","Miniscope Imaging",170329,5,19,null,"Annet Glas","Two photon versus miniscope","Raw Data","AG161221","Two-photon Imaging",170405,15,11]
[170,"Annet Glas","Two photon versus miniscope","Raw Data","AG161221","Miniscope Imaging",170329,5,20,null,"Annet Glas","Two photon versus miniscope","Raw Data","AG161221","Two-photon Imaging",170405,15,12]
[171,"Annet Glas","Two photon versus miniscope","Raw Data","AG161221","Miniscope Imaging",170329,5,21,null,"Annet Glas","Two photon versus miniscope","Raw Data","AG161221","Two-photon Imaging",170405,15,13]
[172,"Annet Glas","Two photon versus miniscope","Raw Data","AG161221","Miniscope Imaging",170329,5,22,null,"Annet Glas","Two photon versus miniscope","Raw Data",{"$f":"E173","v":"AG161221"},"Two-photon Imaging",170405,15,14]
[173,"Annet Glas","Two photon versus miniscope","Raw Data",{"$f":"E$108","v":"AG161221"},"Miniscope Imaging",170329,5,23,null,"Annet Glas","Two photon versus miniscope","Raw Data",{"$f":"E174","v":"AG161221"},"Two-photon Imaging",170405,15,15]
[174,"Annet Glas","Two photon versus miniscope","Raw Data","AG27",180221,"Miniscope",9,1,null,"Annet Glas","Two photon versus miniscope","Raw Data","AG27",180214,"Two-photon",4,1,null,"Annet Glas","Two photon versus miniscope","Raw Data","AG27",180228,"Miniscope",9,1]
[175,"Annet Glas","Two photon versus miniscope","Raw Data","AG27",180221,"Miniscope",9,{"$f":"I175+1","v":2},null,"Annet Glas","Two photon versus miniscope","Raw Data","AG27",180214,"Two-photon",4,2,null,"Annet Glas","Two photon versus miniscope","Raw Data","AG27",180228,"Miniscope",9,{"$f":"AA175+1","v":2}]
[176,"Annet Glas","Two photon versus miniscope","Raw Data","AG27",180221,"Miniscope",9,{"$f":"I176+1","v":3},null,"Annet Glas","Two photon versus miniscope","Raw Data","AG27",180214,"Two-photon",5,1,null,"Annet Glas","Two photon versus miniscope","Raw Data","AG27",180228,"Miniscope",9,{"$f":"AA176+1","v":3}]
[177,"Annet Glas","Two photon versus miniscope","Raw Data","AG27",180221,"Miniscope",9,4,null,"Annet Glas","Two photon versus miniscope","Raw Data","AG27",180214,"Two-photon",4,3,null,"Annet Glas","Two photon versus miniscope","Raw Data","AG27",180228,"Miniscope",9,4]
[178,"Annet Glas","Two photon versus miniscope","Raw Data","AG27",180221,"Miniscope",9,5,null,"Annet Glas","Two photon versus miniscope","Raw Data","AG27",180214,"Two-photon",5,3,null,"Annet Glas","Two photon versus miniscope","Raw Data","AG27",180228,"Miniscope",9,5]
[179,"Annet Glas","Two photon versus miniscope","Raw Data","AG27",180221,"Miniscope",9,6,null,"Annet Glas","Two photon versus miniscope","Raw Data","AG27",180214,"Two-photon",5,2,null,"Annet Glas","Two photon versus miniscope","Raw Data","AG27",180228,"Miniscope",9,6]
[180,"Annet Glas","Two photon versus miniscope","Raw Data","AG27",180221,"Miniscope",9,7,null,"Annet Glas","Two photon versus miniscope","Raw Data","AG27",180214,"Two-photon",6,1,null,"Annet Glas","Two photon versus miniscope","Raw Data","AG27",180228,"Miniscope",9,7]
[181,"Annet Glas","Two photon versus miniscope","Raw Data","AG27",180221,"Miniscope",9,8,null,"Annet Glas","Two photon versus miniscope","Raw Data","AG27",180214,"Two-photon",6,2,null,"Annet Glas","Two photon versus miniscope","Raw Data","AG27",180228,"Miniscope",9,8]
[182,"Annet Glas","Two photon versus miniscope","Raw Data","AG27",180221,"Miniscope",9,9,null,"Annet Glas","Two photon versus miniscope","Raw Data","AG27",180214,"Two-photon",6,3,null,"Annet Glas","Two photon versus miniscope","Raw Data","AG27",180228,"Miniscope",9,9]
[183,"Annet Glas","Two photon versus miniscope","Raw Data","AG27",180221,"Miniscope",9,10,null,"Annet Glas","Two photon versus miniscope","Raw Data","AG27",180214,"Two-photon",4,4,null,"Annet Glas","Two photon versus miniscope","Raw Data","AG27",180228,"Miniscope",9,10]
[184,"Annet Glas","Two photon versus miniscope","Raw Data","AG27",180221,"Miniscope",9,11,null,"Annet Glas","Two photon versus miniscope","Raw Data","AG27",180214,"Two-photon",5,4,null,"Annet Glas","Two photon versus miniscope","Raw Data","AG27",180228,"Miniscope",9,11]
[185,"Annet Glas","Two photon versus miniscope","Raw Data","AG27",180221,"Miniscope",9,12,null,"Annet Glas","Two photon versus miniscope","Raw Data","AG27",180214,"Two-photon",5,5,null,"Annet Glas","Two photon versus miniscope","Raw Data","AG27",180228,"Miniscope",9,12]
[186,"Annet Glas","Two photon versus miniscope","Raw Data","AG32",180421,"MiniLoc1",3,1,null,"Annet Glas","Two photon versus miniscope","Raw Data","AG32",180414,"2P/loc1",1,1,null,"Annet Glas","Two photon versus miniscope","Raw Data","AG32",180428,"MiniLoc1",3,1]
[187,"Annet Glas","Two photon versus miniscope","Raw Data","AG32",180421,"MiniLoc1",3,{"$f":"I187+1","v":2},null,"Annet Glas","Two photon versus miniscope","Raw Data","AG32",180414,"2P/loc1",1,2,null,"Annet Glas","Two photon versus miniscope","Raw Data","AG32",180428,"MiniLoc1",3,2]
[188,"Annet Glas","Two photon versus miniscope","Raw Data","AG32",180421,"MiniLoc1",3,{"$f":"I188+1","v":3},null,"Annet Glas","Two photon versus miniscope","Raw Data","AG32",180414,"2P/loc1",1,3,null,"Annet Glas","Two photon versus miniscope","Raw Data","AG32",180428,"MiniLoc1",3,3]
[189,"Annet Glas","Two photon versus miniscope","Raw Data","AG32",180421,"MiniLoc1",3,4,null,"Annet Glas","Two photon versus miniscope","Raw Data","AG32",180414,"2P/loc1",2,1,null,"Annet Glas","Two photon versus miniscope","Raw Data","AG32",180428,"MiniLoc1",3,4]
[190,"Annet Glas","Two photon versus miniscope","Raw Data","AG32",180421,"MiniLoc1",3,5,null,"Annet Glas","Two photon versus miniscope","Raw Data","AG32",180414,"2P/loc1",2,2,null,"Annet Glas","Two photon versus miniscope","Raw Data","AG32",180428,"MiniLoc1",3,5]
[191,"Annet Glas","Two photon versus miniscope","Raw Data","AG32",180421,"MiniLoc1",3,6,null,"Annet Glas","Two photon versus miniscope","Raw Data","AG32",180414,"2P/loc1",2,3,null,"Annet Glas","Two photon versus miniscope","Raw Data","AG32",180428,"MiniLoc1",3,6]
[192,"Annet Glas","Two photon versus miniscope","Raw Data","AG32",180421,"MiniLoc1",3,7,null,"Annet Glas","Two photon versus miniscope","Raw Data","AG32",180414,"2P/loc1",4,2,null,"Annet Glas","Two photon versus miniscope","Raw Data","AG32",180428,"MiniLoc1",3,7]
[193,"Annet Glas","Two photon versus miniscope","Raw Data","AG32",180421,"MiniLoc1",3,8,null,"Annet Glas","Two photon versus miniscope","Raw Data","AG32",180414,"2P/loc1",2,4,null,"Annet Glas","Two photon versus miniscope","Raw Data","AG32",180428,"MiniLoc1",3,8]
[194,"Annet Glas","Two photon versus miniscope","Raw Data","AG32",180421,"MiniLoc1",3,9,null,"Annet Glas","Two photon versus miniscope","Raw Data","AG32",180414,"2P/loc1",1,4,null,"Annet Glas","Two photon versus miniscope","Raw Data","AG32",180428,"MiniLoc1",3,9]
[{"$f":"A195+1","v":195},"Annet Glas","Two photon versus miniscope","Raw Data","AG32",180421,"MiniLoc1",3,10,null,"Annet Glas","Two photon versus miniscope","Raw Data","AG32",180414,"2P/loc1",2,5,null,"Annet Glas","Two photon versus miniscope","Raw Data","AG32",180428,"MiniLoc1",3,10]
[196,"Annet Glas","Two photon versus miniscope","Raw Data","AG32",180421,"MiniLoc1",3,11,null,"Annet Glas","Two photon versus miniscope","Raw Data","AG32",180414,"2P/loc1",2,6,null,"Annet Glas","Two photon versus miniscope","Raw Data","AG32",180428,"MiniLoc1",3,11]
[197,"Annet Glas","Two photon versus miniscope","Raw Data","AG32",180421,"MiniLoc1",3,12,null,"Annet Glas","Two photon versus miniscope","Raw Data","AG32",180414,"2P/loc1",3,1,null,"Annet Glas","Two photon versus miniscope","Raw Data","AG32",180428,"MiniLoc1",3,12]
[198,"Annet Glas","Two photon versus miniscope","Raw Data","AG32",180421,"MiniLoc1",3,13,null,"Annet Glas","Two photon versus miniscope","Raw Data","AG32",180414,"2P/loc1",3,2,null,"Annet Glas","Two photon versus miniscope","Raw Data","AG32",180428,"MiniLoc1",3,13]
[199,"Annet Glas","Two photon versus miniscope","Raw Data","AG32",180421,"MiniLoc1",3,14,null,"Annet Glas","Two photon versus miniscope","Raw Data","AG32",180414,"2P/loc1",3,3,null,"Annet Glas","Two photon versus miniscope","Raw Data","AG32",180428,"MiniLoc1",3,14]
[200,"Annet Glas","Two photon versus miniscope","Raw Data","AG32",180421,"MiniLoc1",3,15,null,"Annet Glas","Two photon versus miniscope","Raw Data","AG32",180414,"2P/loc1",3,4,null,"Annet Glas","Two photon versus miniscope","Raw Data","AG32",180428,"MiniLoc1",3,15]
[201,"Annet Glas","Two photon versus miniscope","Raw Data","AG32",180421,"MiniLoc1",3,16,null,"Annet Glas","Two photon versus miniscope","Raw Data","AG32",180414,"2P/loc1",3,5,null,"Annet Glas","Two photon versus miniscope","Raw Data","AG32",180428,"MiniLoc1",3,16]
[202,"Annet Glas","Two photon versus miniscope","Raw Data","AG32",180421,"MiniLoc1",3,17,null,"Annet Glas","Two photon versus miniscope","Raw Data","AG32",180414,"2P/loc1",3,6,null,"Annet Glas","Two photon versus miniscope","Raw Data","AG32",180428,"MiniLoc1",3,17]
[203,"Annet Glas","Two photon versus miniscope","Raw Data","AG32",180421,"MiniLoc1",3,18,null,"Annet Glas","Two photon versus miniscope","Raw Data","AG32",180414,"2P/loc1",4,1,null,"Annet Glas","Two photon versus miniscope","Raw Data","AG32",180428,"MiniLoc1",3,18]
[204,"Annet Glas","Two photon versus miniscope","Raw Data","AG32",180421,"MiniLoc1",3,19,null,"Annet Glas","Two photon versus miniscope","Raw Data","AG32",180414,"2P/loc1",5,1,null,"Annet Glas","Two photon versus miniscope","Raw Data","AG32",180428,"MiniLoc1",3,19]
[205,"Annet Glas","Two photon versus miniscope","Raw Data","AG32",180421,"MiniLoc1",3,20,null,"Annet Glas","Two photon versus miniscope","Raw Data","AG32",180414,"2P/loc1",5,2,null,"Annet Glas","Two photon versus miniscope","Raw Data","AG32",180428,"MiniLoc1",3,20]
[206,"Annet Glas","Two photon versus miniscope","Raw Data","AG32",180421,"MiniLoc1",3,21,null,"Annet Glas","Two photon versus miniscope","Raw Data","AG32",180414,"2P/loc1",5,3,null,"Annet Glas","Two photon versus miniscope","Raw Data","AG32",180428,"MiniLoc1",3,21]
[207,"Annet Glas","Two photon versus miniscope","Raw Data","AG32",180421,"MiniLoc1",3,22,null,"Annet Glas","Two photon versus miniscope","Raw Data","AG32",180414,"2P/loc1",5,4,null,"Annet Glas","Two photon versus miniscope","Raw Data","AG32",180428,"MiniLoc1",3,22]
[208,"Annet Glas","Two photon versus miniscope","Raw Data","AG32",180421,"MiniLoc1",3,23,null,"Annet Glas","Two photon versus miniscope","Raw Data","AG32",180414,"2P/loc1",5,5,null,"Annet Glas","Two photon versus miniscope","Raw Data","AG32",180428,"MiniLoc1",3,23]
[209,"Annet Glas","Two photon versus miniscope","Raw Data","AG32",180421,"MiniLoc1",3,24,null,"Annet Glas","Two photon versus miniscope","Raw Data","AG32",180414,"2P/loc1",5,6,null,"Annet Glas","Two photon versus miniscope","Raw Data","AG32",180428,"MiniLoc1",3,24]
[210,"Annet Glas","Two photon versus miniscope","Raw Data","AG32",180421,"MiniLoc1",3,25,null,"Annet Glas","Two photon versus miniscope","Raw Data","AG32",180414,"2P/loc1",5,7,null,"Annet Glas","Two photon versus miniscope","Raw Data","AG32",180428,"MiniLoc1",3,25]
[211,"Annet Glas","Two photon versus miniscope","Raw Data","AG32",180421,"MiniLoc1",6,1,null,"Annet Glas","Two photon versus miniscope","Raw Data","AG32",180414,"2P/loc1",6,1,null,"Annet Glas","Two photon versus miniscope","Raw Data","AG32",180428,"MiniLoc1",6,1]
[212,"Annet Glas","Two photon versus miniscope","Raw Data","AG32",180421,"MiniLoc1",6,{"$f":"I212+1","v":2},null,"Annet Glas","Two photon versus miniscope","Raw Data","AG32",180414,"2P/loc1",6,2,null,"Annet Glas","Two photon versus miniscope","Raw Data","AG32",180428,"MiniLoc1",6,2]
[213,"Annet Glas","Two photon versus miniscope","Raw Data","AG32",180421,"MiniLoc1",6,{"$f":"I213+1","v":3},null,"Annet Glas","Two photon versus miniscope","Raw Data","AG32",180414,"2P/loc1",7,4,null,"Annet Glas","Two photon versus miniscope","Raw Data","AG32",180428,"MiniLoc1",6,3]
[214,"Annet Glas","Two photon versus miniscope","Raw Data","AG32",180421,"MiniLoc1",6,4,null,"Annet Glas","Two photon versus miniscope","Raw Data","AG32",180414,"2P/loc1",7,1,null,"Annet Glas","Two photon versus miniscope","Raw Data","AG32",180428,"MiniLoc1",6,4]
[215,"Annet Glas","Two photon versus miniscope","Raw Data","AG32",180421,"MiniLoc1",6,5,null,"Annet Glas","Two photon versus miniscope","Raw Data","AG32",180414,"2P/loc1",7,2,null,"Annet Glas","Two photon versus miniscope","Raw Data","AG32",180428,"MiniLoc1",6,5]
[216,"Annet Glas","Two photon versus miniscope","Raw Data","AG32",180421,"MiniLoc1",6,6,null,"Annet Glas","Two photon versus miniscope","Raw Data","AG32",180414,"2P/loc1",7,3,null,"Annet Glas","Two photon versus miniscope","Raw Data","AG32",180428,"MiniLoc1",6,6]
[217,"Annet Glas","Two photon versus miniscope","Raw Data","AG32",180421,"MiniLoc1",6,7,null,"Annet Glas","Two photon versus miniscope","Raw Data","AG32",180414,"2P/loc1",7,5,null,"Annet Glas","Two photon versus miniscope","Raw Data","AG32",180428,"MiniLoc1",6,7]
[218,"Annet Glas","Two photon versus miniscope","Raw Data","AG32",180421,"MiniLoc1",6,8,null,"Annet Glas","Two photon versus miniscope","Raw Data","AG32",180414,"2P/loc1",7,6,null,"Annet Glas","Two photon versus miniscope","Raw Data","AG32",180428,"MiniLoc1",6,8]
[219,"Annet Glas","Two photon versus miniscope","Raw Data","AG32",180421,"MiniLoc1",6,9,null,"Annet Glas","Two photon versus miniscope","Raw Data","AG32",180414,"2P/loc1",7,7,null,"Annet Glas","Two photon versus miniscope","Raw Data","AG32",180428,"MiniLoc1",6,9]
[220,"Annet Glas","Two photon versus miniscope","Raw Data","AG32",180421,"MiniLoc1",6,10,null,"Annet Glas","Two photon versus miniscope","Raw Data","AG32",180414,"2P/loc1",7,8,null,"Annet Glas","Two photon versus miniscope","Raw Data","AG32",180428,"MiniLoc1",6,10]
[221,"Annet Glas","Two photon versus miniscope","Raw Data","AG32",180421,"MiniLoc1",6,11,null,"Annet Glas","Two photon versus miniscope","Raw Data","AG32",180414,"2P/loc1",7,9,null,"Annet Glas","Two photon versus miniscope","Raw Data","AG32",180428,"MiniLoc1",6,11]
[222,"Annet Glas","Two photon versus miniscope","Raw Data","AG32",180421,"MiniLoc1",6,12,null,"Annet Glas","Two photon versus miniscope","Raw Data","AG32",180414,"2P/loc1",7,10,null,"Annet Glas","Two photon versus miniscope","Raw Data","AG32",180428,"MiniLoc1",6,12]
[223,"Annet Glas","Two photon versus miniscope","Raw Data","AG32",180421,"MiniLoc1",6,13,null,"Annet Glas","Two photon versus miniscope","Raw Data","AG32",180414,"2P/loc1",7,11,null,"Annet Glas","Two photon versus miniscope","Raw Data","AG32",180428,"MiniLoc1",6,13]
[224,"Annet Glas","Two photon versus miniscope","Raw Data","AG32",180421,"MiniLoc2",3,1,null,"Annet Glas","Two photon versus miniscope","Raw Data","AG32",180414,"2P/loc2",13,4,null,"Annet Glas","Two photon versus miniscope","Raw Data","AG32",180428,"MiniLoc2",3,1]
[225,"Annet Glas","Two photon versus miniscope","Raw Data","AG32",180421,"MiniLoc2",3,2,null,"Annet Glas","Two photon versus miniscope","Raw Data","AG32",180414,"2P/loc2",14,1,null,"Annet Glas","Two photon versus miniscope","Raw Data","AG32",180428,"MiniLoc2",3,2]
[226,"Annet Glas","Two photon versus miniscope","Raw Data","AG32",180421,"MiniLoc2",3,3,null,"Annet Glas","Two photon versus miniscope","Raw Data","AG32",180414,"2P/loc2",16,1,null,"Annet Glas","Two photon versus miniscope","Raw Data","AG32",180428,"MiniLoc2",3,3]
[227,"Annet Glas","Two photon versus miniscope","Raw Data","AG32",180421,"MiniLoc2",3,4,null,"Annet Glas","Two photon versus miniscope","Raw Data","AG32",180414,"2P/loc2",15,2,null,"Annet Glas","Two photon versus miniscope","Raw Data","AG32",180428,"MiniLoc2",3,4]
[228,"Annet Glas","Two photon versus miniscope","Raw Data","AG32",180421,"MiniLoc2",3,5,null,"Annet Glas","Two photon versus miniscope","Raw Data","AG32",180414,"2P/loc2",15,3,null,"Annet Glas","Two photon versus miniscope","Raw Data","AG32",180428,"MiniLoc2",3,5]
[229,"Annet Glas","Two photon versus miniscope","Raw Data","AG32",180421,"MiniLoc2",3,6,null,"Annet Glas","Two photon versus miniscope","Raw Data","AG32",180414,"2P/loc2",15,4,null,"Annet Glas","Two photon versus miniscope","Raw Data","AG32",180428,"MiniLoc2",3,6]
[230,"Annet Glas","Two photon versus miniscope","Raw Data","AG32",180421,"MiniLoc2",3,7,null,"Annet Glas","Two photon versus miniscope","Raw Data","AG32",180414,"2P/loc2",16,2,null,"Annet Glas","Two photon versus miniscope","Raw Data","AG32",180428,"MiniLoc2",3,7]
[231,"Annet Glas","Two photon versus miniscope","Raw Data","AG32",180421,"MiniLoc2",3,8,null,"Annet Glas","Two photon versus miniscope","Raw Data","AG32",180414,"2P/loc2",15,6,null,"Annet Glas","Two photon versus miniscope","Raw Data","AG32",180428,"MiniLoc2",3,8]
[232,"Annet Glas","Two photon versus miniscope","Raw Data","AG32",180421,"MiniLoc2",3,9,null,"Annet Glas","Two photon versus miniscope","Raw Data","AG32",180414,"2P/loc2",15,7,null,"Annet Glas","Two photon versus miniscope","Raw Data","AG32",180428,"MiniLoc2",3,9]
[233,"Annet Glas","Two photon versus miniscope","Raw Data","AG32",180421,"MiniLoc2",3,10,null,"Annet Glas","Two photon versus miniscope","Raw Data","AG32",180414,"2P/loc2",16,3,null,"Annet Glas","Two photon versus miniscope","Raw Data","AG32",180428,"MiniLoc2",3,10]
[234,"Annet Glas","Two photon versus miniscope","Raw Data","AG32",180421,"MiniLoc2",3,11,null,"Annet Glas","Two photon versus miniscope","Raw Data","AG32",180414,"2P/loc2",15,8,null,"Annet Glas","Two photon versus miniscope","Raw Data","AG32",180428,"MiniLoc2",3,11]
[235,"Annet Glas","Two photon versus miniscope","Raw Data","AG32",180421,"MiniLoc2",3,12,null,"Annet Glas","Two photon versus miniscope","Raw Data","AG32",180414,"2P/loc2",16,4,null,"Annet Glas","Two photon versus miniscope","Raw Data","AG32",180428,"MiniLoc2",3,12]
[236,"Annet Glas","Two photon versus miniscope","Raw Data","AG32",180421,"MiniLoc2",3,13,null,"Annet Glas","Two photon versus miniscope","Raw Data","AG32",180414,"2P/loc2",16,8,null,"Annet Glas","Two photon versus miniscope","Raw Data","AG32",180428,"MiniLoc2",3,13]
[237,"Annet Glas","Two photon versus miniscope","Raw Data","AG32",180421,"MiniLoc2",3,14,null,"Annet Glas","Two photon versus miniscope","Raw Data","AG32",180414,"2P/loc2",15,9,null,"Annet Glas","Two photon versus miniscope","Raw Data","AG32",180428,"MiniLoc2",3,14]
[238,"Annet Glas","Two photon versus miniscope","Raw Data","AG32",180421,"MiniLoc2",3,15,null,"Annet Glas","Two photon versus miniscope","Raw Data","AG32",180414,"2P/loc2",14,2,null,"Annet Glas","Two photon versus miniscope","Raw Data","AG32",180428,"MiniLoc2",3,15]
[239,"Annet Glas","Two photon versus miniscope","Raw Data","AG32",180421,"MiniLoc2",3,16,null,"Annet Glas","Two photon versus miniscope","Raw Data","AG32",180414,"2P/loc2",13,11,null,"Annet Glas","Two photon versus miniscope","Raw Data","AG32",180428,"MiniLoc2",3,16]
[240,"Annet Glas","Two photon versus miniscope","Raw Data","AG32",180421,"MiniLoc2",3,17,null,"Annet Glas","Two photon versus miniscope","Raw Data","AG32",180414,"2P/loc2",15,1,null,"Annet Glas","Two photon versus miniscope","Raw Data","AG32",180428,"MiniLoc2",3,17]
[241,"Annet Glas","Two photon versus miniscope","Raw Data","AG32",180421,"MiniLoc2",3,18,null,"Annet Glas","Two photon versus miniscope","Raw Data","AG32",180414,"2P/loc2",13,5,null,"Annet Glas","Two photon versus miniscope","Raw Data","AG32",180428,"MiniLoc2",3,18]
[242,"Annet Glas","Two photon versus miniscope","Raw Data","AG32",180421,"MiniLoc2",3,19,null,"Annet Glas","Two photon versus miniscope","Raw Data","AG32",180414,"2P/loc2",15,10,null,"Annet Glas","Two photon versus miniscope","Raw Data","AG32",180428,"MiniLoc2",3,19]
[243,"Annet Glas","Two photon versus miniscope","Raw Data","AG32",180421,"MiniLoc2",3,20,null,"Annet Glas","Two photon versus miniscope","Raw Data","AG32",180414,"2P/loc2",15,11,null,"Annet Glas","Two photon versus miniscope","Raw Data","AG32",180428,"MiniLoc2",3,20]
[244,"Annet Glas","Two photon versus miniscope","Raw Data","AG32",180421,"MiniLoc2",3,21,null,"Annet Glas","Two photon versus miniscope","Raw Data","AG32",180414,"2P/loc2",16,5,null,"Annet Glas","Two photon versus miniscope","Raw Data","AG32",180428,"MiniLoc2",3,21]
[245,"Annet Glas","Two photon versus miniscope","Raw Data","AG32",180421,"MiniLoc2",3,22,null,"Annet Glas","Two photon versus miniscope","Raw Data","AG32",180414,"2P/loc2",15,12,null,"Annet Glas","Two photon versus miniscope","Raw Data","AG32",180428,"MiniLoc2",3,22]
[246,"Annet Glas","Two photon versus miniscope","Raw Data","AG32",180421,"MiniLoc2",3,23,null,"Annet Glas","Two photon versus miniscope","Raw Data","AG32",180414,"2P/loc2",16,6,null,"Annet Glas","Two photon versus miniscope","Raw Data","AG32",180428,"MiniLoc2",3,23]
[247,"Annet Glas","Two photon versus miniscope","Raw Data","AG32",180421,"MiniLoc2",3,24,null,"Annet Glas","Two photon versus miniscope","Raw Data","AG32",180414,"2P/loc2",16,7,null,"Annet Glas","Two photon versus miniscope","Raw Data","AG32",180428,"MiniLoc2",3,24]
[248,"Annet Glas","Two photon versus miniscope","Raw Data","AG32",180421,"MiniLoc2",3,25,null,"Annet Glas","Two photon versus miniscope","Raw Data","AG32",180414,"2P/loc2",15,20,null,"Annet Glas","Two photon versus miniscope","Raw Data","AG32",180428,"MiniLoc2",3,25]
[249,"Annet Glas","Two photon versus miniscope","Raw Data","AG32",180421,"MiniLoc2",3,26,null,"Annet Glas","Two photon versus miniscope","Raw Data","AG32",180414,"2P/loc2",12,3,null,"Annet Glas","Two photon versus miniscope","Raw Data","AG32",180428,"MiniLoc2",3,26]
[250,"Annet Glas","Two photon versus miniscope","Raw Data","AG32",180421,"MiniLoc2",3,27,null,"Annet Glas","Two photon versus miniscope","Raw Data","AG32",180414,"2P/loc2",13,12,null,"Annet Glas","Two photon versus miniscope","Raw Data","AG32",180428,"MiniLoc2",3,27]
[251,"Annet Glas","Two photon versus miniscope","Raw Data","AG32",180421,"MiniLoc2",3,28,null,"Annet Glas","Two photon versus miniscope","Raw Data","AG32",180414,"2P/loc2",14,3,null,"Annet Glas","Two photon versus miniscope","Raw Data","AG32",180428,"MiniLoc2",3,28]
[252,"Annet Glas","Two photon versus miniscope","Raw Data","AG32",180421,"MiniLoc2",3,29,null,"Annet Glas","Two photon versus miniscope","Raw Data","AG32",180414,"2P/loc2",15,14,null,"Annet Glas","Two photon versus miniscope","Raw Data","AG32",180428,"MiniLoc2",3,29]
[253,"Annet Glas","Two photon versus miniscope","Raw Data","AG32",180421,"MiniLoc2",3,30,null,"Annet Glas","Two photon versus miniscope","Raw Data","AG32",180414,"2P/loc2",15,15,null,"Annet Glas","Two photon versus miniscope","Raw Data","AG32",180428,"MiniLoc2",3,30]
[254,"Annet Glas","Two photon versus miniscope","Raw Data","AG32",180421,"MiniLoc2",3,31,null,"Annet Glas","Two photon versus miniscope","Raw Data","AG32",180414,"2P/loc2",15,16,null,"Annet Glas","Two photon versus miniscope","Raw Data","AG32",180428,"MiniLoc2",3,31]
[255,"Annet Glas","Two photon versus miniscope","Raw Data","AG32",180421,"MiniLoc2",3,32,null,"Annet Glas","Two photon versus miniscope","Raw Data","AG32",180414,"2P/loc2",15,17,null,"Annet Glas","Two photon versus miniscope","Raw Data","AG32",180428,"MiniLoc2",3,32]
[256,"Annet Glas","Two photon versus miniscope","Raw Data","AG32",180421,"MiniLoc2",3,33,null,"Annet Glas","Two photon versus miniscope","Raw Data","AG32",180414,"2P/loc2",15,18,null,"Annet Glas","Two photon versus miniscope","Raw Data","AG32",180428,"MiniLoc2",3,33]
[257,"Annet Glas","Two photon versus miniscope","Raw Data","AG32",180421,"MiniLoc2",3,34,null,"Annet Glas","Two photon versus miniscope","Raw Data","AG32",180414,"2P/loc2",14,4,null,"Annet Glas","Two photon versus miniscope","Raw Data","AG32",180428,"MiniLoc2",3,34]
[258,"Annet Glas","Two photon versus miniscope","Raw Data","AG32",180421,"MiniLoc2",3,35,null,"Annet Glas","Two photon versus miniscope","Raw Data","AG32",180414,"2P/loc2",13,8,null,"Annet Glas","Two photon versus miniscope","Raw Data","AG32",180428,"MiniLoc2",3,35]
[{"$f":"A259+1","v":259},"Annet Glas","Two photon versus miniscope","Raw Data","AG32",180421,"MiniLoc2",3,36,null,"Annet Glas","Two photon versus miniscope","Raw Data","AG32",180414,"2P/loc2",15,19,null,"Annet Glas","Two photon versus miniscope","Raw Data","AG32",180428,"MiniLoc2",3,36]
[260,"Annet Glas","Two photon versus miniscope","Raw Data","AG32",180421,"MiniLoc2",3,37,null,"Annet Glas","Two photon versus miniscope","Raw Data","AG32",180414,"2P/loc2",12,2,null,"Annet Glas","Two photon versus miniscope","Raw Data","AG32",180428,"MiniLoc2",3,37]
[261,"Annet Glas","Two photon versus miniscope","Raw Data","AG32",180421,"MiniLoc2",3,38,null,"Annet Glas","Two photon versus miniscope","Raw Data","AG32",180414,"2P/loc2",13,9,null,"Annet Glas","Two photon versus miniscope","Raw Data","AG32",180428,"MiniLoc2",3,38]
[262,"Annet Glas","Two photon versus miniscope","Raw Data","AG32",180421,"MiniLoc2",3,39,null,"Annet Glas","Two photon versus miniscope","Raw Data","AG32",180414,"2P/loc2",14,5,null,"Annet Glas","Two photon versus miniscope","Raw Data","AG32",180428,"MiniLoc2",3,39]
[263,"Annet Glas","Two photon versus miniscope","Raw Data","AG32",180421,"MiniLoc2",3,40,null,"Annet Glas","Two photon versus miniscope","Raw Data","AG32",180414,"2P/loc2",12,1,null,"Annet Glas","Two photon versus miniscope","Raw Data","AG32",180428,"MiniLoc2",3,40]
[264,"Annet Glas","Two photon versus miniscope","Raw Data","AG32",180421,"MiniLoc2",3,41,null,"Annet Glas","Two photon versus miniscope","Raw Data","AG32",180414,"2P/loc2",13,1,null,"Annet Glas","Two photon versus miniscope","Raw Data","AG32",180428,"MiniLoc2",3,41]
[265,"Annet Glas","Two photon versus miniscope","Raw Data","AG32",180421,"MiniLoc2",3,42,null,"Annet Glas","Two photon versus miniscope","Raw Data","AG32",180414,"2P/loc2",13,2,null,"Annet Glas","Two photon versus miniscope","Raw Data","AG32",180428,"MiniLoc2",3,42]
[266,"Annet Glas","Two photon versus miniscope","Raw Data","AG32",180421,"MiniLoc2",3,43,null,"Annet Glas","Two photon versus miniscope","Raw Data","AG32",180414,"2P/loc2",13,3,null,"Annet Glas","Two photon versus miniscope","Raw Data","AG32",180428,"MiniLoc2",3,43]
[267,"Annet Glas","Two photon versus miniscope","Raw Data","AG32",180421,"MiniLoc2",3,44,null,"Annet Glas","Two photon versus miniscope","Raw Data","AG32",180414,"2P/loc2",11,1,null,"Annet Glas","Two photon versus miniscope","Raw Data","AG32",180428,"MiniLoc2",3,44]
[268,"Annet Glas","Two photon versus miniscope","Raw Data","AG32",180421,"MiniLoc2",3,45,null,"Annet Glas","Two photon versus miniscope","Raw Data","AG32",180414,"2P/loc2",13,7,null,"Annet Glas","Two photon versus miniscope","Raw Data","AG32",180428,"MiniLoc2",3,45]
[269,"Annet Glas","Two photon versus miniscope","Raw Data","AG32",180421,"MiniLoc2",3,46,null,"Annet Glas","Two photon versus miniscope","Raw Data","AG32",180414,"2P/loc2",13,10,null,"Annet Glas","Two photon versus miniscope","Raw Data","AG32",180428,"MiniLoc2",3,46]
[270,"Annet Glas","Two photon versus miniscope","Raw Data","AG32",180421,"MiniLoc2",3,47,null,"Annet Glas","Two photon versus miniscope","Raw Data","AG32",180414,"2P/loc2",11,2,null,"Annet Glas","Two photon versus miniscope","Raw Data","AG32",180428,"MiniLoc2",3,47]
[271,"Annet Glas","Two photon versus miniscope","Raw Data","AG32",180421,"MiniLoc2",3,48,null,"Annet Glas","Two photon versus miniscope","Raw Data","AG32",180414,"2P/loc2",11,3,null,"Annet Glas","Two photon versus miniscope","Raw Data","AG32",180428,"MiniLoc2",3,48]
[272,"Annet Glas","Two photon versus miniscope","Raw Data","AG32",180421,"MiniLoc2",3,49,null,"Annet Glas","Two photon versus miniscope","Raw Data","AG32",180414,"2P/loc2",11,4,null,"Annet Glas","Two photon versus miniscope","Raw Data","AG32",180428,"MiniLoc2",3,49]
[273,"Annet Glas","Two photon versus miniscope","Raw Data","AG32",180421,"MiniLoc2",3,50,null,"Annet Glas","Two photon versus miniscope","Raw Data","AG32",180414,"2P/loc2",15,21,null,"Annet Glas","Two photon versus miniscope","Raw Data","AG32",180428,"MiniLoc2",3,50]
[274,"Annet Glas","Two photon versus miniscope","Raw Data","AG32",180421,"MiniLoc2",3,51,null,"Annet Glas","Two photon versus miniscope","Raw Data","AG32",180414,"2P/loc2",14,6,null,"Annet Glas","Two photon versus miniscope","Raw Data","AG32",180428,"MiniLoc2",3,51]
[275,"Annet Glas","Two photon versus miniscope","Raw Data","AG32",180421,"MiniLoc2",3,52,null,"Annet Glas","Two photon versus miniscope","Raw Data","AG32",180414,"2P/loc2",15,24,null,"Annet Glas","Two photon versus miniscope","Raw Data","AG32",180428,"MiniLoc2",3,52]
[276,"Annet Glas","Two photon versus miniscope","Raw Data","AG32",180421,"MiniLoc2",3,53,null,"Annet Glas","Two photon versus miniscope","Raw Data","AG32",180414,"2P/loc2",15,22,null,"Annet Glas","Two photon versus miniscope","Raw Data","AG32",180428,"MiniLoc2",3,53]
[277,"Annet Glas","Two photon versus miniscope","Raw Data","AG32",180421,"MiniLoc2",3,54,null,"Annet Glas","Two photon versus miniscope","Raw Data","AG32",180414,"2P/loc2",15,25,null,"Annet Glas","Two photon versus miniscope","Raw Data","AG32",180428,"MiniLoc2",3,54]
[278,"Annet Glas","Two photon versus miniscope","Raw Data","AG32",180421,"MiniLoc2",3,55,null,"Annet Glas","Two photon versus miniscope","Raw Data","AG32",180414,"2P/loc2",15,23,null,"Annet Glas","Two photon versus miniscope","Raw Data","AG32",180428,"MiniLoc2",3,55]
[279,"Annet Glas","Two photon versus miniscope","Raw Data","AG32",180511,"Mini/Loc1",2,1,null,"Annet Glas","Two photon versus miniscope","Raw Data","AG32",180511,"2p/Loc1",4,1]
[280,"Annet Glas","Two photon versus miniscope","Raw Data","AG32",180511,"Mini/Loc1",2,2,null,"Annet Glas","Two photon versus miniscope","Raw Data","AG32",180511,"2p/Loc1",3,1]
[281,"Annet Glas","Two photon versus miniscope","Raw Data","AG32",180511,"Mini/Loc1",2,3,null,"Annet Glas","Two photon versus miniscope","Raw Data","AG32",180511,"2p/Loc1",1,1]
[282,"Annet Glas","Two photon versus miniscope","Raw Data","AG32",180511,"Mini/Loc1",2,4,null,"Annet Glas","Two photon versus miniscope","Raw Data","AG32",180511,"2p/Loc1",6,1]
[283,"Annet Glas","Two photon versus miniscope","Raw Data","AG32",180511,"Mini/Loc1",2,5,null,"Annet Glas","Two photon versus miniscope","Raw Data","AG32",180511,"2p/Loc1",7,1]
[284,"Annet Glas","Two photon versus miniscope","Raw Data","AG32",180511,"Mini/Loc1",2,6,null,"Annet Glas","Two photon versus miniscope","Raw Data","AG32",180511,"2p/Loc1",6,2]
[285,"Annet Glas","Two photon versus miniscope","Raw Data","AG32",180511,"Mini/Loc1",2,7,null,"Annet Glas","Two photon versus miniscope","Raw Data","AG32",180511,"2p/Loc1",6,3]
[286,"Annet Glas","Two photon versus miniscope","Raw Data","AG32",180511,"Mini/Loc1",2,8,null,"Annet Glas","Two photon versus miniscope","Raw Data","AG32",180511,"2p/Loc1",6,4]
[287,"Annet Glas","Two photon versus miniscope","Raw Data","AG32",180511,"Mini/Loc1",2,9,null,"Annet Glas","Two photon versus miniscope","Raw Data","AG32",180511,"2p/Loc1",6,5]
[288,"Annet Glas","Two photon versus miniscope","Raw Data","AG32",180511,"Mini/Loc1",2,10,null,"Annet Glas","Two photon versus miniscope","Raw Data","AG32",180511,"2p/Loc1",3,2]
[289,"Annet Glas","Two photon versus miniscope","Raw Data","AG32",180511,"Mini/Loc1",2,11,null,"Annet Glas","Two photon versus miniscope","Raw Data","AG32",180511,"2p/Loc1",3,3]
[290,"Annet Glas","Two photon versus miniscope","Raw Data","AG32",180511,"Mini/Loc1",2,12,null,"Annet Glas","Two photon versus miniscope","Raw Data","AG32",180511,"2p/Loc1",3,4]
[291,"Annet Glas","Two photon versus miniscope","Raw Data","AG32",180511,"Mini/Loc1",2,13,null,"Annet Glas","Two photon versus miniscope","Raw Data","AG32",180511,"2p/Loc1",6,11]
[292,"Annet Glas","Two photon versus miniscope","Raw Data","AG32",180511,"Mini/Loc1",2,14,null,"Annet Glas","Two photon versus miniscope","Raw Data","AG32",180511,"2p/Loc1",3,8]
[293,"Annet Glas","Two photon versus miniscope","Raw Data","AG32",180511,"Mini/Loc1",2,15,null,"Annet Glas","Two photon versus miniscope","Raw Data","AG32",180511,"2p/Loc1",3,5]
[294,"Annet Glas","Two photon versus miniscope","Raw Data","AG32",180511,"Mini/Loc1",2,16,null,"Annet Glas","Two photon versus miniscope","Raw Data","AG32",180511,"2p/Loc1",3,6]
[295,"Annet Glas","Two photon versus miniscope","Raw Data","AG32",180511,"Mini/Loc1",2,17,null,"Annet Glas","Two photon versus miniscope","Raw Data","AG32",180511,"2p/Loc1",3,7]
[296,"Annet Glas","Two photon versus miniscope","Raw Data","AG32",180511,"Mini/Loc1",2,18,null,"Annet Glas","Two photon versus miniscope","Raw Data","AG32",180511,"2p/Loc1",6,6]
[297,"Annet Glas","Two photon versus miniscope","Raw Data","AG32",180511,"Mini/Loc1",2,19,null,"Annet Glas","Two photon versus miniscope","Raw Data","AG32",180511,"2p/Loc1",5,1]
[298,"Annet Glas","Two photon versus miniscope","Raw Data","AG32",180511,"Mini/Loc1",2,20,null,"Annet Glas","Two photon versus miniscope","Raw Data","AG32",180511,"2p/Loc1",6,7]
[299,"Annet Glas","Two photon versus miniscope","Raw Data","AG32",180511,"Mini/Loc1",2,21,null,"Annet Glas","Two photon versus miniscope","Raw Data","AG32",180511,"2p/Loc1",5,2]
[300,"Annet Glas","Two photon versus miniscope","Raw Data","AG32",180511,"Mini/Loc1",2,22,null,"Annet Glas","Two photon versus miniscope","Raw Data","AG32",180511,"2p/Loc1",5,3]
[301,"Annet Glas","Two photon versus miniscope","Raw Data","AG32",180511,"Mini/Loc1",2,23,null,"Annet Glas","Two photon versus miniscope","Raw Data","AG32",180511,"2p/Loc1",7,2]
[302,"Annet Glas","Two photon versus miniscope","Raw Data","AG32",180511,"Mini/Loc1",2,24,null,"Annet Glas","Two photon versus miniscope","Raw Data","AG32",180511,"2p/Loc1",6,8]
[303,"Annet Glas","Two photon versus miniscope","Raw Data","AG32",180511,"Mini/Loc1",2,25,null,"Annet Glas","Two photon versus miniscope","Raw Data","AG32",180511,"2p/Loc1",6,9]
[304,"Annet Glas","Two photon versus miniscope","Raw Data","AG32",180511,"Mini/Loc1",2,26,null,"Annet Glas","Two photon versus miniscope","Raw Data","AG32",180511,"2p/Loc1",7,3]
[305,"Annet Glas","Two photon versus miniscope","Raw Data","AG32",180511,"Mini/Loc1",2,27,null,"Annet Glas","Two photon versus miniscope","Raw Data","AG32",180511,"2p/Loc1",7,4]
[306,"Annet Glas","Two photon versus miniscope","Raw Data","AG32",180511,"Mini/Loc1",2,28,null,"Annet Glas","Two photon versus miniscope","Raw Data","AG32",180511,"2p/Loc1",5,4]
[307,"Annet Glas","Two photon versus miniscope","Raw Data","AG32",180511,"Mini/Loc1",2,29,null,"Annet Glas","Two photon versus miniscope","Raw Data","AG32",180511,"2p/Loc1",6,10]
[308,"Annet Glas","Two photon versus miniscope","Raw Data","AG32",180511,"Mini/Loc1",2,30,null,"Annet Glas","Two photon versus miniscope","Raw Data","AG32",180511,"2p/Loc1",7,5]
[309,"Annet Glas","Two photon versus miniscope","Raw Data","AG32",180511,"Mini/Loc1",2,31,null,"Annet Glas","Two photon versus miniscope","Raw Data","AG32",180511,"2p/Loc1",5,5]
[310,"Annet Glas","Two photon versus miniscope","Raw Data","AG32",180511,"Mini/Loc1",2,32,null,"Annet Glas","Two photon versus miniscope","Raw Data","AG32",180511,"2p/Loc1",4,2]
[311,"Annet Glas","Two photon versus miniscope","Raw Data","AG32",180511,"Mini/Loc1",2,33,null,"Annet Glas","Two photon versus miniscope","Raw Data","AG32",180511,"2p/Loc1",4,3]
[312,"Annet Glas","Two photon versus miniscope","Raw Data","AG32",180511,"Mini/Loc1",2,34,null,"Annet Glas","Two photon versus miniscope","Raw Data","AG32",180511,"2p/Loc1",4,4]
[313,"Annet Glas","Two photon versus miniscope","Raw Data","AG32",180511,"Mini/Loc1",2,35,null,"Annet Glas","Two photon versus miniscope","Raw Data","AG32",180511,"2p/Loc1",7,6]
[314,"Annet Glas","Two photon versus miniscope","Raw Data","AG32",180511,"Mini/Loc2",2,1,null,"Annet Glas","Two photon versus miniscope","Raw Data","AG32",180511,"2p/Loc2",2,1]
[315,"Annet Glas","Two photon versus miniscope","Raw Data","AG32",180511,"Mini/Loc2",2,{"$f":"I315+1","v":2},null,"Annet Glas","Two photon versus miniscope","Raw Data","AG32",180511,"2p/Loc2",1,3]
[316,"Annet Glas","Two photon versus miniscope","Raw Data","AG32",180511,"Mini/Loc2",2,{"$f":"I316+1","v":3},null,"Annet Glas","Two photon versus miniscope","Raw Data","AG32",180511,"2p/Loc2",4,1]
[317,"Annet Glas","Two photon versus miniscope","Raw Data","AG32",180511,"Mini/Loc2",2,4,null,"Annet Glas","Two photon versus miniscope","Raw Data","AG32",180511,"2p/Loc2",2,2]
[318,"Annet Glas","Two photon versus miniscope","Raw Data","AG32",180511,"Mini/Loc2",2,5,null,"Annet Glas","Two photon versus miniscope","Raw Data","AG32",180511,"2p/Loc2",3,1]
[319,"Annet Glas","Two photon versus miniscope","Raw Data","AG32",180511,"Mini/Loc2",2,6,null,"Annet Glas","Two photon versus miniscope","Raw Data","AG32",180511,"2p/Loc2",2,3]
[320,"Annet Glas","Two photon versus miniscope","Raw Data","AG32",180511,"Mini/Loc2",2,7,null,"Annet Glas","Two photon versus miniscope","Raw Data","AG32",180511,"2p/Loc2",2,4]
[321,"Annet Glas","Two photon versus miniscope","Raw Data","AG32",180511,"Mini/Loc2",2,8,null,"Annet Glas","Two photon versus miniscope","Raw Data","AG32",180511,"2p/Loc2",1,1]
[322,"Annet Glas","Two photon versus miniscope","Raw Data","AG32",180511,"Mini/Loc2",2,9,null,"Annet Glas","Two photon versus miniscope","Raw Data","AG32",180511,"2p/Loc2",1,2]
[{"$f":"A323+1","v":323},"Annet Glas","Two photon versus miniscope","Raw Data","AG33",18042018,"Miniscope",4,1,null,"Annet Glas","Two photon versus miniscope","Raw Data","AG33",11042018,"2p/loc1",7,1,null,"Annet Glas","Two photon versus miniscope","Raw Data","AG33",25042018,"Miniscope",1,1]
[324,"Annet Glas","Two photon versus miniscope","Raw Data","AG33",18042018,"Miniscope",4,{"$f":"I324+1","v":2},null,"Annet Glas","Two photon versus miniscope","Raw Data","AG33",11042018,"2p/loc1",7,8,null,"Annet Glas","Two photon versus miniscope","Raw Data","AG33",25042018,"Miniscope",1,{"$f":"AA324+1","v":2}]
[325,"Annet Glas","Two photon versus miniscope","Raw Data","AG33",18042018,"Miniscope",4,{"$f":"I325+1","v":3},null,"Annet Glas","Two photon versus miniscope","Raw Data","AG33",11042018,"2p/loc1",6,1,null,"Annet Glas","Two photon versus miniscope","Raw Data","AG33",25042018,"Miniscope",1,{"$f":"AA325+1","v":3}]
[326,"Annet Glas","Two photon versus miniscope","Raw Data","AG33",18042018,"Miniscope",4,4,null,"Annet Glas","Two photon versus miniscope","Raw Data","AG33",11042018,"2p/loc1",6,2,null,"Annet Glas","Two photon versus miniscope","Raw Data","AG33",25042018,"Miniscope",1,4]
[327,"Annet Glas","Two photon versus miniscope","Raw Data","AG33",18042018,"Miniscope",4,5,null,"Annet Glas","Two photon versus miniscope","Raw Data","AG33",11042018,"2p/loc1",7,2,null,"Annet Glas","Two photon versus miniscope","Raw Data","AG33",25042018,"Miniscope",1,5]
[328,"Annet Glas","Two photon versus miniscope","Raw Data","AG33",18042018,"Miniscope",4,6,null,"Annet Glas","Two photon versus miniscope","Raw Data","AG33",11042018,"2p/loc1",6,4,null,"Annet Glas","Two photon versus miniscope","Raw Data","AG33",25042018,"Miniscope",1,6]
[329,"Annet Glas","Two photon versus miniscope","Raw Data","AG33",18042018,"Miniscope",4,7,null,"Annet Glas","Two photon versus miniscope","Raw Data","AG33",11042018,"2p/loc1",5,1,null,"Annet Glas","Two photon versus miniscope","Raw Data","AG33",25042018,"Miniscope",1,7]
[330,"Annet Glas","Two photon versus miniscope","Raw Data","AG33",18042018,"Miniscope",4,8,null,"Annet Glas","Two photon versus miniscope","Raw Data","AG33",11042018,"2p/loc1",3,3,null,"Annet Glas","Two photon versus miniscope","Raw Data","AG33",25042018,"Miniscope",1,8]
[331,"Annet Glas","Two photon versus miniscope","Raw Data","AG33",18042018,"Miniscope",4,9,null,"Annet Glas","Two photon versus miniscope","Raw Data","AG33",11042018,"2p/loc1",7,3,null,"Annet Glas","Two photon versus miniscope","Raw Data","AG33",25042018,"Miniscope",1,9]
[332,"Annet Glas","Two photon versus miniscope","Raw Data","AG33",18042018,"Miniscope",4,10,null,"Annet Glas","Two photon versus miniscope","Raw Data","AG33",11042018,"2p/loc1",4,1,null,"Annet Glas","Two photon versus miniscope","Raw Data","AG33",25042018,"Miniscope",1,10]
[333,"Annet Glas","Two photon versus miniscope","Raw Data","AG33",18042018,"Miniscope",4,11,null,"Annet Glas","Two photon versus miniscope","Raw Data","AG33",11042018,"2p/loc1",7,4,null,"Annet Glas","Two photon versus miniscope","Raw Data","AG33",25042018,"Miniscope",1,11]
[334,"Annet Glas","Two photon versus miniscope","Raw Data","AG33",18042018,"Miniscope",4,12,null,"Annet Glas","Two photon versus miniscope","Raw Data","AG33",11042018,"2p/loc1",7,5,null,"Annet Glas","Two photon versus miniscope","Raw Data","AG33",25042018,"Miniscope",1,12]
[335,"Annet Glas","Two photon versus miniscope","Raw Data","AG33",18042018,"Miniscope",4,13,null,"Annet Glas","Two photon versus miniscope","Raw Data","AG33",11042018,"2p/loc1",6,5,null,"Annet Glas","Two photon versus miniscope","Raw Data","AG33",25042018,"Miniscope",1,13]
[336,"Annet Glas","Two photon versus miniscope","Raw Data","AG33",18042018,"Miniscope",4,14,null,"Annet Glas","Two photon versus miniscope","Raw Data","AG33",11042018,"2p/loc1",6,4,null,"Annet Glas","Two photon versus miniscope","Raw Data","AG33",25042018,"Miniscope",1,14]
[337,"Annet Glas","Two photon versus miniscope","Raw Data","AG33",18042018,"Miniscope",4,15,null,"Annet Glas","Two photon versus miniscope","Raw Data","AG33",11042018,"2p/loc1",7,6,null,"Annet Glas","Two photon versus miniscope","Raw Data","AG33",25042018,"Miniscope",1,15]
[338,"Annet Glas","Two photon versus miniscope","Raw Data","AG33",18042018,"Miniscope",4,16,null,"Annet Glas","Two photon versus miniscope","Raw Data","AG33",11042018,"2p/loc1",2,2,null,"Annet Glas","Two photon versus miniscope","Raw Data","AG33",25042018,"Miniscope",1,16]
[339,"Annet Glas","Two photon versus miniscope","Raw Data","AG33",18042018,"Miniscope",4,17,null,"Annet Glas","Two photon versus miniscope","Raw Data","AG33",11042018,"2p/loc1",6,6,null,"Annet Glas","Two photon versus miniscope","Raw Data","AG33",25042018,"Miniscope",1,17]
[340,"Annet Glas","Two photon versus miniscope","Raw Data","AG33",18042018,"Miniscope",4,18,null,"Annet Glas","Two photon versus miniscope","Raw Data","AG33",11042018,"2p/loc1",2,1,null,"Annet Glas","Two photon versus miniscope","Raw Data","AG33",25042018,"Miniscope",1,18]
[341,"Annet Glas","Two photon versus miniscope","Raw Data","AG33",18042018,"Miniscope",4,19,null,"Annet Glas","Two photon versus miniscope","Raw Data","AG33",11042018,"2p/loc1",1,1,null,"Annet Glas","Two photon versus miniscope","Raw Data","AG33",25042018,"Miniscope",1,19]
[342,"Annet Glas","Two photon versus miniscope","Raw Data","AG33",18042018,"Miniscope",4,20,null,"Annet Glas","Two photon versus miniscope","Raw Data","AG33",11042018,"2p/loc1",3,2,null,"Annet Glas","Two photon versus miniscope","Raw Data","AG33",25042018,"Miniscope",1,20]
[343,"Annet Glas","Two photon versus miniscope","Raw Data","AG33",18042018,"Miniscope",4,{"$f":"I343+1","v":21},null,"Annet Glas","Two photon versus miniscope","Raw Data","AG33",11042018,"2p/loc1",4,3,null,"Annet Glas","Two photon versus miniscope","Raw Data","AG33",25042018,"Miniscope",1,{"$f":"AA343+1","v":21}]
[344,"Annet Glas","Two photon versus miniscope","Raw Data","AG33",18042018,"Miniscope",4,22,null,"Annet Glas","Two photon versus miniscope","Raw Data","AG33",11042018,"2p/loc1",4,4,null,"Annet Glas","Two photon versus miniscope","Raw Data","AG33",25042018,"Miniscope",1,22]
[345,"Annet Glas","Two photon versus miniscope","Raw Data","AG33",18042018,"Miniscope",4,23,null,"Annet Glas","Two photon versus miniscope","Raw Data","AG33",11042018,"2p/loc1",4,7,null,"Annet Glas","Two photon versus miniscope","Raw Data","AG33",25042018,"Miniscope",1,23]
[346,"Annet Glas","Two photon versus miniscope","Raw Data","AG33",18042018,"Miniscope",4,24,null,"Annet Glas","Two photon versus miniscope","Raw Data","AG33",11042018,"2p/loc1",4,5,null,"Annet Glas","Two photon versus miniscope","Raw Data","AG33",25042018,"Miniscope",1,24]
[347,"Annet Glas","Two photon versus miniscope","Raw Data","AG33",18042018,"Miniscope",4,25,null,"Annet Glas","Two photon versus miniscope","Raw Data","AG33",11042018,"2p/loc1",4,6,null,"Annet Glas","Two photon versus miniscope","Raw Data","AG33",25042018,"Miniscope",1,25]
[348,"Annet Glas","Two photon versus miniscope","Raw Data","AG33",18042018,"Miniscope",4,26,null,"Annet Glas","Two photon versus miniscope","Raw Data","AG33",11042018,"2p/loc1",7,7,null,"Annet Glas","Two photon versus miniscope","Raw Data","AG33",25042018,"Miniscope",1,26]
[349,"Annet Glas","Two photon versus miniscope","Raw Data","AG33",18042018,"Miniscope",4,27,null,"Annet Glas","Two photon versus miniscope","Raw Data","AG33",11042018,"2p/loc1",2,3,null,"Annet Glas","Two photon versus miniscope","Raw Data","AG33",25042018,"Miniscope",1,27]
[350,"Annet Glas","Two photon versus miniscope","Raw Data","AG33",18042018,"Miniscope",4,28,null,"Annet Glas","Two photon versus miniscope","Raw Data","AG33",11042018,"2p/loc1",3,1,null,"Annet Glas","Two photon versus miniscope","Raw Data","AG33",25042018,"Miniscope",1,28]
[351,"Annet Glas","Two photon versus miniscope","Raw Data","AG33",18042018,"Miniscope",4,29,null,"Annet Glas","Two photon versus miniscope","Raw Data","AG33",11042018,"2p/loc1",4,2,null,"Annet Glas","Two photon versus miniscope","Raw Data","AG33",25042018,"Miniscope",1,29]
[352,"Annet Glas","Two photon versus miniscope","Raw Data","AG33",18042018,"Miniscope",6,1,null,"Annet Glas","Two photon versus miniscope","Raw Data","AG33",11042018,"2p/loc2",11,1,null,"Annet Glas","Two photon versus miniscope","Raw Data","AG33",25042018,"Miniscope",3,1]
[353,"Annet Glas","Two photon versus miniscope","Raw Data","AG33",18042018,"Miniscope",6,2,null,"Annet Glas","Two photon versus miniscope","Raw Data","AG33",11042018,"2p/loc2",11,2,null,"Annet Glas","Two photon versus miniscope","Raw Data","AG33",25042018,"Miniscope",3,2]
[354,"Annet Glas","Two photon versus miniscope","Raw Data","AG33",18042018,"Miniscope",6,3,null,"Annet Glas","Two photon versus miniscope","Raw Data","AG33",11042018,"2p/loc2",12,1,null,"Annet Glas","Two photon versus miniscope","Raw Data","AG33",25042018,"Miniscope",3,3]
[355,"Annet Glas","Two photon versus miniscope","Raw Data","AG33",18042018,"Miniscope",6,4,null,"Annet Glas","Two photon versus miniscope","Raw Data","AG33",11042018,"2p/loc2",12,2,null,"Annet Glas","Two photon versus miniscope","Raw Data","AG33",25042018,"Miniscope",3,4]
[356,"Annet Glas","Two photon versus miniscope","Raw Data","AG33",18042018,"Miniscope",6,5,null,"Annet Glas","Two photon versus miniscope","Raw Data","AG33",11042018,"2p/loc2",12,3,null,"Annet Glas","Two photon versus miniscope","Raw Data","AG33",25042018,"Miniscope",3,5]
[357,"Annet Glas","Two photon versus miniscope","Raw Data","AG33",18042018,"Miniscope",6,6,null,"Annet Glas","Two photon versus miniscope","Raw Data","AG33",11042018,"2p/loc2",13,1,null,"Annet Glas","Two photon versus miniscope","Raw Data","AG33",25042018,"Miniscope",3,6]
[358,"Annet Glas","Two photon versus miniscope","Raw Data","AG33",18042018,"Miniscope",6,7,null,"Annet Glas","Two photon versus miniscope","Raw Data","AG33",11042018,"2p/loc2",13,2,null,"Annet Glas","Two photon versus miniscope","Raw Data","AG33",25042018,"Miniscope",3,7]
[359,"Annet Glas","Two photon versus miniscope","Raw Data","AG33",18042018,"Miniscope",6,8,null,"Annet Glas","Two photon versus miniscope","Raw Data","AG33",11042018,"2p/loc2",13,3,null,"Annet Glas","Two photon versus miniscope","Raw Data","AG33",25042018,"Miniscope",3,8]
[360,"Annet Glas","Two photon versus miniscope","Raw Data","AG33",18042018,"Miniscope",6,9,null,"Annet Glas","Two photon versus miniscope","Raw Data","AG33",11042018,"2p/loc2",14,1,null,"Annet Glas","Two photon versus miniscope","Raw Data","AG33",25042018,"Miniscope",3,9]
[361,"Annet Glas","Two photon versus miniscope","Raw Data","AG33",18042018,"Miniscope",6,10,null,"Annet Glas","Two photon versus miniscope","Raw Data","AG33",11042018,"2p/loc2",15,1,null,"Annet Glas","Two photon versus miniscope","Raw Data","AG33",25042018,"Miniscope",3,10]
[362,"Annet Glas","Two photon versus miniscope","Raw Data","AG33",18042018,"Miniscope",6,11,null,"Annet Glas","Two photon versus miniscope","Raw Data","AG33",11042018,"2p/loc2",15,2,null,"Annet Glas","Two photon versus miniscope","Raw Data","AG33",25042018,"Miniscope",3,11]
[363,"Annet Glas","Two photon versus miniscope","Raw Data","AG33",18042018,"Miniscope",6,12,null,"Annet Glas","Two photon versus miniscope","Raw Data","AG33",11042018,"2p/loc2",15,3,null,"Annet Glas","Two photon versus miniscope","Raw Data","AG33",25042018,"Miniscope",3,12]
[364,"Annet Glas","Two photon versus miniscope","Raw Data","AG33",18042018,"Miniscope",6,13,null,"Annet Glas","Two photon versus miniscope","Raw Data","AG33",11042018,"2p/loc2",16,1,null,"Annet Glas","Two photon versus miniscope","Raw Data","AG33",25042018,"Miniscope",3,13]
[365,"Annet Glas","Two photon versus miniscope","Raw Data","AG33",18042018,"Miniscope",6,14,null,"Annet Glas","Two photon versus miniscope","Raw Data","AG33",11042018,"2p/loc2",16,2,null,"Annet Glas","Two photon versus miniscope","Raw Data","AG33",25042018,"Miniscope",3,14]
[366,"Annet Glas","Two photon versus miniscope","Raw Data","AG33",18042018,"Miniscope",6,15,null,"Annet Glas","Two photon versus miniscope","Raw Data","AG33",11042018,"2p/loc2",16,3,null,"Annet Glas","Two photon versus miniscope","Raw Data","AG33",25042018,"Miniscope",3,15]
[367,"Annet Glas","Two photon versus miniscope","Raw Data","AG33",18042018,"Miniscope",6,16,null,"Annet Glas","Two photon versus miniscope","Raw Data","AG33",11042018,"2p/loc2",16,4,null,"Annet Glas","Two photon versus miniscope","Raw Data","AG33",25042018,"Miniscope",3,16]
[368,"Annet Glas","Two photon versus miniscope","Raw Data","AG33",18042018,"Miniscope",6,17,null,"Annet Glas","Two photon versus miniscope","Raw Data","AG33",11042018,"2p/loc2",16,5,null,"Annet Glas","Two photon versus miniscope","Raw Data","AG33",25042018,"Miniscope",3,17]
[369,"Annet Glas","Two photon versus miniscope","Raw Data","AG33",8052018,"Mini",1,1,null,"Annet Glas","Two photon versus miniscope","Raw Data","AG33",8052018,"2p/loc1",4,7]
[370,"Annet Glas","Two photon versus miniscope","Raw Data","AG33",8052018,"Mini",1,{"$f":"I370+1","v":2},null,"Annet Glas","Two photon versus miniscope","Raw Data","AG33",8052018,"2p/loc1",5,1]
[371,"Annet Glas","Two photon versus miniscope","Raw Data","AG33",8052018,"Mini",1,{"$f":"I371+1","v":3},null,"Annet Glas","Two photon versus miniscope","Raw Data","AG33",8052018,"2p/loc1",3,1]
[372,"Annet Glas","Two photon versus miniscope","Raw Data","AG33",8052018,"Mini",1,4,null,"Annet Glas","Two photon versus miniscope","Raw Data","AG33",8052018,"2p/loc1",5,2]
[373,"Annet Glas","Two photon versus miniscope","Raw Data","AG33",8052018,"Mini",1,5,null,"Annet Glas","Two photon versus miniscope","Raw Data","AG33",8052018,"2p/loc1",3,2]
[374,"Annet Glas","Two photon versus miniscope","Raw Data","AG33",8052018,"Mini",1,6,null,"Annet Glas","Two photon versus miniscope","Raw Data","AG33",8052018,"2p/loc1",4,1]
[375,"Annet Glas","Two photon versus miniscope","Raw Data","AG33",8052018,"Mini",1,7,null,"Annet Glas","Two photon versus miniscope","Raw Data","AG33",8052018,"2p/loc1",4,2]
[376,"Annet Glas","Two photon versus miniscope","Raw Data","AG33",8052018,"Mini",1,8,null,"Annet Glas","Two photon versus miniscope","Raw Data","AG33",8052018,"2p/loc1",4,3]
[377,"Annet Glas","Two photon versus miniscope","Raw Data","AG33",8052018,"Mini",1,9,null,"Annet Glas","Two photon versus miniscope","Raw Data","AG33",8052018,"2p/loc1",3,3]
[378,"Annet Glas","Two photon versus miniscope","Raw Data","AG33",8052018,"Mini",1,10,null,"Annet Glas","Two photon versus miniscope","Raw Data","AG33",8052018,"2p/loc1",3,4]
[379,"Annet Glas","Two photon versus miniscope","Raw Data","AG33",8052018,"Mini",1,11,null,"Annet Glas","Two photon versus miniscope","Raw Data","AG33",8052018,"2p/loc1",6,1]
[380,"Annet Glas","Two photon versus miniscope","Raw Data","AG33",8052018,"Mini",1,12,null,"Annet Glas","Two photon versus miniscope","Raw Data","AG33",8052018,"2p/loc1",3,5]
[381,"Annet Glas","Two photon versus miniscope","Raw Data","AG33",8052018,"Mini",1,13,null,"Annet Glas","Two photon versus miniscope","Raw Data","AG33",8052018,"2p/loc1",5,3]
[382,"Annet Glas","Two photon versus miniscope","Raw Data","AG33",8052018,"Mini",1,14,null,"Annet Glas","Two photon versus miniscope","Raw Data","AG33",8052018,"2p/loc1",4,4]
[383,"Annet Glas","Two photon versus miniscope","Raw Data","AG33",8052018,"Mini",1,15,null,"Annet Glas","Two photon versus miniscope","Raw Data","AG33",8052018,"2p/loc1",3,6]
[384,"Annet Glas","Two photon versus miniscope","Raw Data","AG33",8052018,"Mini",2,1,null,"Annet Glas","Two photon versus miniscope","Raw Data","AG33",8052018,"2p/loc1",5,4]
[385,"Annet Glas","Two photon versus miniscope","Raw Data","AG33",8052018,"Mini",2,2,null,"Annet Glas","Two photon versus miniscope","Raw Data","AG33",8052018,"2p/loc1",6,3]
[386,"Annet Glas","Two photon versus miniscope","Raw Data","AG33",8052018,"Mini",2,3,null,"Annet Glas","Two photon versus miniscope","Raw Data","AG33",8052018,"2p/loc1",5,5]
[{"$f":"A387+1","v":387},"Annet Glas","Two photon versus miniscope","Raw Data","AG33",8052018,"Mini",2,4,null,"Annet Glas","Two photon versus miniscope","Raw Data","AG33",8052018,"2p/loc1",4,5]
[388,"Annet Glas","Two photon versus miniscope","Raw Data","AG33",8052018,"Mini",2,5,null,"Annet Glas","Two photon versus miniscope","Raw Data","AG33",8052018,"2p/loc1",5,9]
[389,"Annet Glas","Two photon versus miniscope","Raw Data","AG33",8052018,"Mini",2,6,null,"Annet Glas","Two photon versus miniscope","Raw Data","AG33",8052018,"2p/loc1",4,6]
[390,"Annet Glas","Two photon versus miniscope","Raw Data","AG33",8052018,"Mini",2,7,null,"Annet Glas","Two photon versus miniscope","Raw Data","AG33",8052018,"2p/loc1",3,7]
[391,"Annet Glas","Two photon versus miniscope","Raw Data","AG33",8052018,"Mini",2,8,null,"Annet Glas","Two photon versus miniscope","Raw Data","AG33",8052018,"2p/loc1",5,6]
[392,"Annet Glas","Two photon versus miniscope","Raw Data","AG33",8052018,"Mini",2,9,null,"Annet Glas","Two photon versus miniscope","Raw Data","AG33",8052018,"2p/loc1",6,3]
[393,"Annet Glas","Two photon versus miniscope","Raw Data","AG33",8052018,"Mini",2,10,null,"Annet Glas","Two photon versus miniscope","Raw Data","AG33",8052018,"2p/loc1",5,7]
[394,"Annet Glas","Two photon versus miniscope","Raw Data","AG33",8052018,"Mini",2,11,null,"Annet Glas","Two photon versus miniscope","Raw Data","AG33",8052018,"2p/loc1",6,4]
[395,"Annet Glas","Two photon versus miniscope","Raw Data","AG33",8052018,"Mini",2,12,null,"Annet Glas","Two photon versus miniscope","Raw Data","AG33",8052018,"2p/loc1",6,5]
[396,"Annet Glas","Two photon versus miniscope","Raw Data","AG33",8052018,"Mini",2,13,null,"Annet Glas","Two photon versus miniscope","Raw Data","AG33",8052018,"2p/loc1",6,6]
[397,"Annet Glas","Two photon versus miniscope","Raw Data","AG33",8052018,"Mini",2,14,null,"Annet Glas","Two photon versus miniscope","Raw Data","AG33",8052018,"2p/loc1",6,7]
[398,"Annet Glas","Two photon versus miniscope","Raw Data","AG33",8052018,"Mini",2,15,null,"Annet Glas","Two photon versus miniscope","Raw Data","AG33",8052018,"2p/loc1",6,8]
[399,"Annet Glas","Two photon versus miniscope","Raw Data","AG33",8052018,"Mini",2,16,null,"Annet Glas","Two photon versus miniscope","Raw Data","AG33",8052018,"2p/loc1",5,8]
[400,"Annet Glas","Two photon versus miniscope","Raw Data","AG33",8052018,"Mini",3,1,null,"Annet Glas","Two photon versus miniscope","Raw Data","AG33",8052018,"2p/loc2",6,1]
[401,"Annet Glas","Two photon versus miniscope","Raw Data","AG33",8052018,"Mini",3,2,null,"Annet Glas","Two photon versus miniscope","Raw Data","AG33",8052018,"2p/loc2",6,2]
[402,"Annet Glas","Two photon versus miniscope","Raw Data","AG33",8052018,"Mini",3,3,null,"Annet Glas","Two photon versus miniscope","Raw Data","AG33",8052018,"2p/loc2",4,1]
[403,"Annet Glas","Two photon versus miniscope","Raw Data","AG33",8052018,"Mini",3,4,null,"Annet Glas","Two photon versus miniscope","Raw Data","AG33",8052018,"2p/loc2",5,1]
[404,"Annet Glas","Two photon versus miniscope","Raw Data","AG33",8052018,"Mini",3,5,null,"Annet Glas","Two photon versus miniscope","Raw Data","AG33",8052018,"2p/loc2",3,1]
[405,"Annet Glas","Two photon versus miniscope","Raw Data","AG33",8052018,"Mini",3,6,null,"Annet Glas","Two photon versus miniscope","Raw Data","AG33",8052018,"2p/loc2",4,2]
[406,"Annet Glas","Two photon versus miniscope","Raw Data","AG33",8052018,"Mini",3,7,null,"Annet Glas","Two photon versus miniscope","Raw Data","AG33",8052018,"2p/loc2",3,2]
[407,"Annet Glas","Two photon versus miniscope","Raw Data","AG33",8052018,"Mini",3,8,null,"Annet Glas","Two photon versus miniscope","Raw Data","AG33",8052018,"2p/loc2",4,3]
[408,"Annet Glas","Two photon versus miniscope","Raw Data","AG33",8052018,"Mini",3,9,null,"Annet Glas","Two photon versus miniscope","Raw Data","AG33",8052018,"2p/loc2",1,1]
[409,"Annet Glas","Two photon versus miniscope","Raw Data","AG33",8052018,"Mini",3,10,null,"Annet Glas","Two photon versus miniscope","Raw Data","AG33",8052018,"2p/loc2",4,4]
[410,"Annet Glas","Two photon versus miniscope","Raw Data","AG33",8052018,"Mini",3,11,null,"Annet Glas","Two photon versus miniscope","Raw Data","AG33",8052018,"2p/loc2",6,3]
[411,"Annet Glas","Two photon versus miniscope","Raw Data","AG33",8052018,"Mini",3,12,null,"Annet Glas","Two photon versus miniscope","Raw Data","AG33",8052018,"2p/loc2",5,2]
[412,"Annet Glas","Two photon versus miniscope","Raw Data","AG33",8052018,"Mini",3,13,null,"Annet Glas","Two photon versus miniscope","Raw Data","AG33",8052018,"2p/loc2",6,4]
[413,"Annet Glas","Two photon versus miniscope","Raw Data","AG33",8052018,"Mini",3,14,null,"Annet Glas","Two photon versus miniscope","Raw Data","AG33",8052018,"2p/loc2",5,3]
[414,"Annet Glas","Two photon versus miniscope","Raw Data","AG33",8052018,"Mini",3,15,null,"Annet Glas","Two photon versus miniscope","Raw Data","AG33",8052018,"2p/loc2",6,5]
[415,"Annet Glas","Two photon versus miniscope","Raw Data","AG33",8052018,"Mini",3,16,null,"Annet Glas","Two photon versus miniscope","Raw Data","AG33",8052018,"2p/loc2",6,6]
[416,"Annet Glas","Two photon versus miniscope","Raw Data","AG33",8052018,"Mini",3,17,null,"Annet Glas","Two photon versus miniscope","Raw Data","AG33",8052018,"2p/loc2",5,4]
[417,"Annet Glas","Two photon versus miniscope","Raw Data","AG33",8052018,"Mini",3,18,null,"Annet Glas","Two photon versus miniscope","Raw Data","AG33",8052018,"2p/loc2",4,5]
[418,"Annet Glas","Two photon versus miniscope","Raw Data","AG33",8052018,"Mini",3,19,null,"Annet Glas","Two photon versus miniscope","Raw Data","AG33",8052018,"2p/loc2",6,7]
[419,"Annet Glas","Two photon versus miniscope","Raw Data","AG33",8052018,"Mini",3,20,null,"Annet Glas","Two photon versus miniscope","Raw Data","AG33",8052018,"2p/loc2",6,8]
[420,"Annet Glas","Two photon versus miniscope","Raw Data","AG33",8052018,"Mini",3,21,null,"Annet Glas","Two photon versus miniscope","Raw Data","AG33",8052018,"2p/loc2",6,9]
[421,"Annet Glas","Two photon versus miniscope","Raw Data","AG33",8052018,"Mini",3,22,null,"Annet Glas","Two photon versus miniscope","Raw Data","AG33",8052018,"2p/loc2",5,5]
[422,"Annet Glas","Two photon versus miniscope","Raw Data","AG33",8052018,"Mini",3,23,null,"Annet Glas","Two photon versus miniscope","Raw Data","AG33",8052018,"2p/loc2",5,6]
[423,"Annet Glas","Two photon versus miniscope","Raw Data","AG33",8052018,"Mini",3,24,null,"Annet Glas","Two photon versus miniscope","Raw Data","AG33",8052018,"2p/loc2",6,10]
[424,"Annet Glas","Two photon versus miniscope","Raw Data","AG33",8052018,"Mini",3,25,null,"Annet Glas","Two photon versus miniscope","Raw Data","AG33",8052018,"2p/loc2",6,11]
[425,"Annet Glas","Two photon versus miniscope","Raw Data","AG33",8052018,"Mini",3,26,null,"Annet Glas","Two photon versus miniscope","Raw Data","AG33",8052018,"2p/loc2",5,7]
[426,"Annet Glas","Two photon versus miniscope","Raw Data","AG33",8052018,"Mini",3,27,null,"Annet Glas","Two photon versus miniscope","Raw Data","AG33",8052018,"2p/loc2",6,12]
[427,"Annet Glas","Two photon versus miniscope","Raw Data","AG33",8052018,"Mini",3,28,null,"Annet Glas","Two photon versus miniscope","Raw Data","AG33",8052018,"2p/loc2",6,13]
[428,"Annet Glas","Two photon versus miniscope","Raw Data","AG33",8052018,"Mini",3,29,null,"Annet Glas","Two photon versus miniscope","Raw Data","AG33",8052018,"2p/loc2",5,8]
[429,"Annet Glas","Two photon versus miniscope","Raw Data","AG33",8052018,"Mini",3,30,null,"Annet Glas","Two photon versus miniscope","Raw Data","AG33",8052018,"2p/loc2",6,14]
[430,"Annet Glas","Two photon versus miniscope","Raw Data","AG33",8052018,"Mini",3,31,null,"Annet Glas","Two photon versus miniscope","Raw Data","AG33",8052018,"2p/loc2",6,15]
[431,"Annet Glas","Two photon versus miniscope","Raw Data","AG33",8052018,"Mini",3,32,null,"Annet Glas","Two photon versus miniscope","Raw Data","AG33",8052018,"2p/loc2",6,16]
[432,"Annet Glas","Two photon versus miniscope","Raw Data","AG34",19042018,"Mini/loc1",1,1,null,"Annet Glas","Two photon versus miniscope","Raw Data","AG34",12042018,"2p/loc1",1,1,null,"Annet Glas","Two photon versus miniscope","Raw Data","AG34",26042018,"loc1",2,1]
[433,"Annet Glas","Two photon versus miniscope","Raw Data","AG34",19042018,"Mini/loc1",1,2,null,"Annet Glas","Two photon versus miniscope","Raw Data","AG34",12042018,"2p/loc1",3,1,null,"Annet Glas","Two photon versus miniscope","Raw Data","AG34",26042018,"loc1",2,2]
[434,"Annet Glas","Two photon versus miniscope","Raw Data","AG34",19042018,"Mini/loc1",1,3,null,"Annet Glas","Two photon versus miniscope","Raw Data","AG34",12042018,"2p/loc1",1,2,null,"Annet Glas","Two photon versus miniscope","Raw Data","AG34",26042018,"loc1",2,3]
[435,"Annet Glas","Two photon versus miniscope","Raw Data","AG34",19042018,"Mini/loc1",1,4,null,"Annet Glas","Two photon versus miniscope","Raw Data","AG34",12042018,"2p/loc1",2,1,null,"Annet Glas","Two photon versus miniscope","Raw Data","AG34",26042018,"loc1",2,4]
[436,"Annet Glas","Two photon versus miniscope","Raw Data","AG34",19042018,"Mini/loc1",4,1,null,"Annet Glas","Two photon versus miniscope","Raw Data","AG34",12042018,"2p/loc1",4,1,null,"Annet Glas","Two photon versus miniscope","Raw Data","AG34",26042018,"loc1",5,1]
[437,"Annet Glas","Two photon versus miniscope","Raw Data","AG34",19042018,"Mini/loc1",4,2,null,"Annet Glas","Two photon versus miniscope","Raw Data","AG34",12042018,"2p/loc1",4,2,null,"Annet Glas","Two photon versus miniscope","Raw Data","AG34",26042018,"loc1",5,2]
[438,"Annet Glas","Two photon versus miniscope","Raw Data","AG34",19042018,"Mini/loc1",4,3,null,"Annet Glas","Two photon versus miniscope","Raw Data","AG34",12042018,"2p/loc1",5,1,null,"Annet Glas","Two photon versus miniscope","Raw Data","AG34",26042018,"loc1",5,3]
[439,"Annet Glas","Two photon versus miniscope","Raw Data","AG34",19042018,"Mini/loc1",4,4,null,"Annet Glas","Two photon versus miniscope","Raw Data","AG34",12042018,"2p/loc1",4,3,null,"Annet Glas","Two photon versus miniscope","Raw Data","AG34",26042018,"loc1",5,4]
[440,"Annet Glas","Two photon versus miniscope","Raw Data","AG34",19042018,"Mini/loc1",4,5,null,"Annet Glas","Two photon versus miniscope","Raw Data","AG34",12042018,"2p/loc1",6,1,null,"Annet Glas","Two photon versus miniscope","Raw Data","AG34",26042018,"loc1",5,5]
[441,"Annet Glas","Two photon versus miniscope","Raw Data","AG34",19042018,"Mini/loc1",4,6,null,"Annet Glas","Two photon versus miniscope","Raw Data","AG34",12042018,"2p/loc1",7,1,null,"Annet Glas","Two photon versus miniscope","Raw Data","AG34",26042018,"loc1",5,6]
[442,"Annet Glas","Two photon versus miniscope","Raw Data","AG34",19042018,"Mini/loc2",13,1,null,"Annet Glas","Two photon versus miniscope","Raw Data","AG34",12042018,"2p/loc2",12,1,null,"Annet Glas","Two photon versus miniscope","Raw Data","AG34",26042018,"loc2",14,1]
[443,"Annet Glas","Two photon versus miniscope","Raw Data","AG34",19042018,"Mini/loc2",13,2,null,"Annet Glas","Two photon versus miniscope","Raw Data","AG34",12042018,"2p/loc2",12,2,null,"Annet Glas","Two photon versus miniscope","Raw Data","AG34",26042018,"loc2",14,2]
[444,"Annet Glas","Two photon versus miniscope","Raw Data","AG34",19042018,"Mini/loc2",13,3,null,"Annet Glas","Two photon versus miniscope","Raw Data","AG34",12042018,"2p/loc2",13,1,null,"Annet Glas","Two photon versus miniscope","Raw Data","AG34",26042018,"loc2",14,3]
[445,"Annet Glas","Two photon versus miniscope","Raw Data","AG34",19042018,"Mini/loc2",13,4,null,"Annet Glas","Two photon versus miniscope","Raw Data","AG34",12042018,"2p/loc2",13,2,null,"Annet Glas","Two photon versus miniscope","Raw Data","AG34",26042018,"loc2",14,4]
[446,"Annet Glas","Two photon versus miniscope","Raw Data","AG34",19042018,"Mini/loc2",13,5,null,"Annet Glas","Two photon versus miniscope","Raw Data","AG34",12042018,"2p/loc2",13,3,null,"Annet Glas","Two photon versus miniscope","Raw Data","AG34",26042018,"loc2",14,5]
[447,"Annet Glas","Two photon versus miniscope","Raw Data","AG34",19042018,"Mini/loc2",13,6,null,"Annet Glas","Two photon versus miniscope","Raw Data","AG34",12042018,"2p/loc2",13,4,null,"Annet Glas","Two photon versus miniscope","Raw Data","AG34",26042018,"loc2",14,6]
[448,"Annet Glas","Two photon versus miniscope","Raw Data","AG34",19042018,"Mini/loc2",13,7,null,"Annet Glas","Two photon versus miniscope","Raw Data","AG34",12042018,"2p/loc2",15,1,null,"Annet Glas","Two photon versus miniscope","Raw Data","AG34",26042018,"loc2",14,7]
[449,"Annet Glas","Two photon versus miniscope","Raw Data","AG34",19042018,"Mini/loc2",13,8,null,"Annet Glas","Two photon versus miniscope","Raw Data","AG34",12042018,"2p/loc2",13,5,null,"Annet Glas","Two photon versus miniscope","Raw Data","AG34",26042018,"loc2",14,8]
[450,"Annet Glas","Two photon versus miniscope","Raw Data","AG34",19042018,"Mini/loc2",13,9,null,"Annet Glas","Two photon versus miniscope","Raw Data","AG34",12042018,"2p/loc2",15,9,null,"Annet Glas","Two photon versus miniscope","Raw Data","AG34",26042018,"loc2",14,9]
[{"$f":"A451+1","v":451},"Annet Glas","Two photon versus miniscope","Raw Data","AG34",19042018,"Mini/loc2",13,10,null,"Annet Glas","Two photon versus miniscope","Raw Data","AG34",12042018,"2p/loc2",15,2,null,"Annet Glas","Two photon versus miniscope","Raw Data","AG34",26042018,"loc2",14,10]
[452,"Annet Glas","Two photon versus miniscope","Raw Data","AG34",19042018,"Mini/loc2",13,11,null,"Annet Glas","Two photon versus miniscope","Raw Data","AG34",12042018,"2p/loc2",15,3,null,"Annet Glas","Two photon versus miniscope","Raw Data","AG34",26042018,"loc2",14,11]
[453,"Annet Glas","Two photon versus miniscope","Raw Data","AG34",19042018,"Mini/loc2",13,12,null,"Annet Glas","Two photon versus miniscope","Raw Data","AG34",12042018,"2p/loc2",15,4,null,"Annet Glas","Two photon versus miniscope","Raw Data","AG34",26042018,"loc2",14,12]
[454,"Annet Glas","Two photon versus miniscope","Raw Data","AG34",19042018,"Mini/loc2",13,13,null,"Annet Glas","Two photon versus miniscope","Raw Data","AG34",12042018,"2p/loc2",15,5,null,"Annet Glas","Two photon versus miniscope","Raw Data","AG34",26042018,"loc2",14,13]
[455,"Annet Glas","Two photon versus miniscope","Raw Data","AG34",19042018,"Mini/loc2",13,14,null,"Annet Glas","Two photon versus miniscope","Raw Data","AG34",12042018,"2p/loc2",15,6,null,"Annet Glas","Two photon versus miniscope","Raw Data","AG34",26042018,"loc2",14,14]
[456,"Annet Glas","Two photon versus miniscope","Raw Data","AG34",19042018,"Mini/loc2",13,15,null,"Annet Glas","Two photon versus miniscope","Raw Data","AG34",12042018,"2p/loc2",16,1,null,"Annet Glas","Two photon versus miniscope","Raw Data","AG34",26042018,"loc2",14,15]
[457,"Annet Glas","Two photon versus miniscope","Raw Data","AG34",19042018,"Mini/loc2",13,16,null,"Annet Glas","Two photon versus miniscope","Raw Data","AG34",12042018,"2p/loc2",16,2,null,"Annet Glas","Two photon versus miniscope","Raw Data","AG34",26042018,"loc2",14,16]
[458,"Annet Glas","Two photon versus miniscope","Raw Data","AG34",19042018,"Mini/loc2",13,17,null,"Annet Glas","Two photon versus miniscope","Raw Data","AG34",12042018,"2p/loc2",16,3,null,"Annet Glas","Two photon versus miniscope","Raw Data","AG34",26042018,"loc2",14,17]
[459,"Annet Glas","Two photon versus miniscope","Raw Data","AG34",19042018,"Mini/loc2",13,18,null,"Annet Glas","Two photon versus miniscope","Raw Data","AG34",12042018,"2p/loc2",16,4,null,"Annet Glas","Two photon versus miniscope","Raw Data","AG34",26042018,"loc2",14,18]
[460,"Annet Glas","Two photon versus miniscope","Raw Data","AG34",19042018,"Mini/loc2",13,19,null,"Annet Glas","Two photon versus miniscope","Raw Data","AG34",12042018,"2p/loc2",15,7,null,"Annet Glas","Two photon versus miniscope","Raw Data","AG34",26042018,"loc2",14,19]
[461,"Annet Glas","Two photon versus miniscope","Raw Data","AG34",19042018,"Mini/loc2",13,20,null,"Annet Glas","Two photon versus miniscope","Raw Data","AG34",12042018,"2p/loc2",15,8,null,"Annet Glas","Two photon versus miniscope","Raw Data","AG34",26042018,"loc2",14,20]
[462,"Annet Glas","Two photon versus miniscope","Raw Data","AG34",19042018,"Mini/loc2",13,21,null,"Annet Glas","Two photon versus miniscope","Raw Data","AG34",12042018,"2p/loc2",17,1,null,"Annet Glas","Two photon versus miniscope","Raw Data","AG34",26042018,"loc2",14,21]
[463,"Annet Glas","Two photon versus miniscope","Raw Data","AG34",7052018,"Mini",1,1,null,"Annet Glas","Two photon versus miniscope","Raw Data","AG34",7052018,"2p",9,1]
[464,"Annet Glas","Two photon versus miniscope","Raw Data","AG34",7052018,"Mini",1,2,null,"Annet Glas","Two photon versus miniscope","Raw Data","AG34",7052018,"2p",8,1]
[465,"Annet Glas","Two photon versus miniscope","Raw Data","AG34",7052018,"Mini",1,3,null,"Annet Glas","Two photon versus miniscope","Raw Data","AG34",7052018,"2p",6,1]
[466,"Annet Glas","Two photon versus miniscope","Raw Data","AG34",7052018,"Mini",1,4,null,"Annet Glas","Two photon versus miniscope","Raw Data","AG34",7052018,"2p",8,2]
[467,"Annet Glas","Two photon versus miniscope","Raw Data","AG34",7052018,"Mini",1,5,null,"Annet Glas","Two photon versus miniscope","Raw Data","AG34",7052018,"2p",6,2]
[468,"Annet Glas","Two photon versus miniscope","Raw Data","AG34",7052018,"Mini",1,6,null,"Annet Glas","Two photon versus miniscope","Raw Data","AG34",7052018,"2p",8,3]
[469,"Annet Glas","Two photon versus miniscope","Raw Data","AG34",7052018,"Mini",1,7,null,"Annet Glas","Two photon versus miniscope","Raw Data","AG34",7052018,"2p",9,2]
[470,"Annet Glas","Two photon versus miniscope","Raw Data","AG34",7052018,"Mini",1,8,null,"Annet Glas","Two photon versus miniscope","Raw Data","AG34",7052018,"2p",9,3]
[471,"Annet Glas","Two photon versus miniscope","Raw Data","AG34",7052018,"Mini",1,9,null,"Annet Glas","Two photon versus miniscope","Raw Data","AG34",7052018,"2p",1,1]
[472,"Annet Glas","Two photon versus miniscope","Raw Data","AG34",7052018,"Mini",1,10,null,"Annet Glas","Two photon versus miniscope","Raw Data","AG34",7052018,"2p",9,4]
[473,"Annet Glas","Two photon versus miniscope","Raw Data","AG34",7052018,"Mini",1,11,null,"Annet Glas","Two photon versus miniscope","Raw Data","AG34",7052018,"2p",2,1]
[474,"Annet Glas","Two photon versus miniscope","Raw Data","AG34",7052018,"Mini",1,12,null,"Annet Glas","Two photon versus miniscope","Raw Data","AG34",7052018,"2p",9,5]
[475,"Annet Glas","Two photon versus miniscope","Raw Data","AG34",7052018,"Mini",1,13,null,"Annet Glas","Two photon versus miniscope","Raw Data","AG34",7052018,"2p",4,1]
[476,"Annet Glas","Two photon versus miniscope","Raw Data","AG34",7052018,"Mini",1,14,null,"Annet Glas","Two photon versus miniscope","Raw Data","AG34",7052018,"2p",4,2]
[477,"Annet Glas","Two photon versus miniscope","Raw Data","AG34",7052018,"Mini",1,15,null,"Annet Glas","Two photon versus miniscope","Raw Data","AG34",7052018,"2p",4,3]
[478,"Annet Glas","Two photon versus miniscope","Raw Data","AG34",7052018,"Mini",1,16,null,"Annet Glas","Two photon versus miniscope","Raw Data","AG34",7052018,"2p",6,3]
[479,"Annet Glas","Two photon versus miniscope","Raw Data","AG34",7052018,"Mini",1,17,null,"Annet Glas","Two photon versus miniscope","Raw Data","AG34",7052018,"2p",8,4]
[480,"Annet Glas","Two photon versus miniscope","Raw Data","AG34",7052018,"Mini",1,18,null,"Annet Glas","Two photon versus miniscope","Raw Data","AG34",7052018,"2p",8,5]
[481,"Annet Glas","Two photon versus miniscope","Raw Data","AG34",7052018,"Mini",1,19,null,"Annet Glas","Two photon versus miniscope","Raw Data","AG34",7052018,"2p",7,1]
[482,"Annet Glas","Two photon versus miniscope","Raw Data","AG34",7052018,"Mini",1,20,null,"Annet Glas","Two photon versus miniscope","Raw Data","AG34",7052018,"2p",9,6]
[483,"Annet Glas","Two photon versus miniscope","Raw Data","AG34",7052018,"Mini",1,21,null,"Annet Glas","Two photon versus miniscope","Raw Data","AG34",7052018,"2p",9,7]
[484,"Annet Glas","Two photon versus miniscope","Raw Data","AG34",7052018,"Mini",1,22,null,"Annet Glas","Two photon versus miniscope","Raw Data","AG34",7052018,"2p",8,6]
[485,"Annet Glas","Two photon versus miniscope","Raw Data","AG34",7052018,"Mini",1,23,null,"Annet Glas","Two photon versus miniscope","Raw Data","AG34",7052018,"2p",8,7]
[486,"Annet Glas","Two photon versus miniscope","Raw Data","AG34",7052018,"Mini",1,24,null,"Annet Glas","Two photon versus miniscope","Raw Data","AG34",7052018,"2p",5,1]
[487,"Annet Glas","Two photon versus miniscope","Raw Data","AG34",7052018,"Mini",1,25,null,"Annet Glas","Two photon versus miniscope","Raw Data","AG34",7052018,"2p",4,4]
[488,"Annet Glas","Two photon versus miniscope","Raw Data","AG34",7052018,"Mini",1,26,null,"Annet Glas","Two photon versus miniscope","Raw Data","AG34",7052018,"2p",2,2]